Cogmind - Beta 10.2 @@@ ROGUE MODE // 2020.11.26 @ 13:39:31 Player: WardronebayCritNoArmorAnalys Result: Heading to fleet! Performance ------------- Evolutions (9) 4500 Regions Visited (31) 6200 Robots Destroyed (313) 1565 Value Destroyed (13745) 13745 Prototype IDs (130) 2600 Alien Tech Used (14) 2800 Bonus (40095) 40095 TOTAL SCORE: 71505 Bonus ------- High Alert Combat Kills 977 Follower Combat Kills 6274 Network Hubs Disabled 800 Met Data Miner 300 Met Warlord at Base 500 MAIN.C Attacked Warlord 500 Warlord Defense Kill 150 Found Hidden Lab 3000 Used Core Reset Matrix 3000 Hacked Protovariant 500 Met R17 at Research 2000 Met Warlord at Research 2000 Destroyed MAIN.C Guards 500 Met MAIN.C 5000 Destroyed MAIN.C Shell 5000 Destroyed MAIN.C 10000 Met Architect 300 Destroyed A8 300 Destroyed A6 400 Destroyed A5 500 Win 3000 Friendly Fire -4906 Cogmind --------- Core Integrity 4/1600 Matter 650/800 Energy 90/100 System Corruption 0% Temperature Cool (38) Movement Walking (105) Location To Fleet Rendezvous Parts ------- > --- POWER (2) -------- (None) > --- PROPULSION (5) --- Enhanced Flexi-carbon Leg Enhanced Flexi-carbon Leg Experimental Biometal Leg Experimental Biometal Leg Combat Antigrav System > --- UTILITY (16) ----- Medium Storage Unit Experimental Matter Compressor Experimental Targeting Computer Experimental Target Analyzer Advanced Particle Charger Experimental Weapon Cycler Layered Medium Armor Plating Layered Medium Armor Plating Layered Medium Armor Plating Centrium Light Armor Plating Centrium Linked Plating Medium Regenerative Plating Experimental Thermal Shield > --- WEAPON (3) ------- Modified Quantum Sheargun Hypervelocity Linear Accelerator Plasma Lance > --- INVENTORY (8) ---- Combat Antigrav System Peak State ------------ > --- POWER ------------ Improved Quantum Reactor Zero-point Reactor > --- PROPULSION ------- Cooled Antigrav System Cooled Linear Gravjet Combat Linear Gravjet Combat Linear Gravjet Combat Linear Gravjet > --- UTILITY ---------- Medium Storage Unit Large Storage Unit Experimental ECM Suite Experimental Propulsion Shielding Experimental Powered Armor Experimental Powered Armor Wardrone Bay > --- WEAPON ----------- Omega Cannon Plasma Lance > --- INVENTORY -------- Cooled Antigrav System Cooled Antigrav System Combat Antigrav System Combat Antigrav System Desublimator Experimental Matter Compressor Experimental Targeting Computer Experimental Target Analyzer Quantum Capacitor Experimental Weapon Cycler Cloaking Device High-powered Transdimensional Reconstructor Gamma Rifle [Rating: 278] Favorites ----------- Power Makeshift Power Source Engine Makeshift Power Source Power Core Fission Core Reactor Improved Quantum Reactor Propulsion Combat Linear Gravjet Treads Light Treads Leg Improved Carbon-fiber Leg Wheel Compact Wheel Hover Unit Combat Linear Gravjet Flight Unit Improved Flight Unit Utility Large Storage Unit Device Experimental Sensor Array Storage Large Storage Unit Processor Advanced Signal Interpreter Hackware Advanced Hacking Suite Protection Light Armor Plating Artifact Phase Redirector Weapon Heavy Flak Cannon Energy Gun Vortex Shotgun Energy Cannon Long-range Phase Cannon Ballistic Gun Assault Rifle Ballistic Cannon Heavy Flak Cannon Launcher Mini Smartbomb Launcher Special Weapon Mining Laser Slashing Weapon Makeshift Sword Piercing Weapon Vortex Lance Special Melee Weapon Advanced Datajack Build | -11 -10 -10 -9 -9 -9 -7 -7 -7 -7 -6 -6 -6 -6 -6 -6 -5 -5 -5 -5 -4 -4 -4 -4 -3 -3 -2 -2 -2 -1 -1 -1 ------- Run | Scr Mat Min Mat Sto Rec Fac Low Low Dat Pro Fac Ext Cet Arc Hub Fac Upp Upp War Pro Fac Arm Lab Res Tes Res Qua Sec Acc Com Ac0 Slots Evolved 18 | . . . 2 . . 4 . . . . 2 . . . . 2 . . . . 2 . . 2 . 2 . . 2 . . Power 1 | . . . . . . 1 . . . . . . . . . . . . . . . . . . . . . . . . . Propulsion 2 | . . . . . . 2 . . . . . . . . . . . . . . . . . . . . . . . . . Utility 14 | . . . 1 . . 1 . . . . 2 . . . . 2 . . . . 2 . . 2 . 2 . . 2 . . Weapon 1 | . . . 1 . . . . . . . . . . . . . . . . . . . . . . . . . . . . Parts Attached 630 | 7 28 1 24 42 1 20 18 3 3 15 21 23 36 12 8 19 16 31 19 15 6 39 4 12 19 4 18 6 3 95 62 Power 45 | 1 1 . 1 2 . 3 4 . . 1 3 1 3 2 . 2 1 2 1 . . 2 . 1 1 1 . . . 9 3 Engine 23 | 1 1 . 1 2 . 2 4 . . 1 2 1 1 2 . 2 1 1 . . . . . . . . . . . 1 . Core 4 | . . . . . . 1 . . . . 1 . . . . . . 1 . . . 1 . . . . . . . . . Reactor 18 | . . . . . . . . . . . . . 2 . . . . . 1 . . 1 . 1 1 1 . . . 8 3 Propulsion 103 | 2 . . 3 14 . 4 4 . . . 4 6 2 4 . 4 1 2 5 3 1 5 2 . . . 2 . . 18 17 Treads 41 | 2 . . 3 13 . . 2 . . . . 6 2 1 . 3 1 2 . . . . . . . . . . . 6 . Leg 13 | . . . . . . . 2 . . . 2 . . . . . . . 2 1 . . . . . . . . . . 6 Wheel 7 | . . . . . . . . . . . 2 . . . . . . . . . . . . . . . . . . 5 . Hover 36 | . . . . . . . . . . . . . . 3 . 1 . . 2 2 1 5 2 . . . 2 . . 7 11 Flight 6 | . . . . 1 . 4 . . . . . . . . . . . . 1 . . . . . . . . . . . . Utility 284 | 2 3 . 5 7 . 9 6 3 1 7 8 12 21 1 8 10 11 21 8 6 4 25 1 11 13 3 11 4 3 33 27 Device 156 | 1 1 . . . . 4 4 3 1 5 6 6 13 . 3 4 8 15 7 6 2 18 . 7 11 1 4 2 1 17 6 Storage 30 | . . . 1 1 . . 1 . . 2 . 1 2 . . 3 2 2 1 . . 1 1 2 . . . 1 . 5 4 Processor 16 | 1 . . 2 1 . 2 . . . . . . . . . . . . . . . 4 . . . . . . . 2 4 Hackware 17 | . . . . . . 1 . . . . 2 . . 1 3 2 . . . . 2 1 . . 1 1 2 1 . . . Protection 63 | . 2 . 2 5 . 2 1 . . . . 5 6 . 2 1 1 4 . . . 1 . 2 1 1 3 . 2 9 13 Artifact 2 | . . . . . . . . . . . . . . . . . . . . . . . . . . . 2 . . . . Weapon 198 | 2 24 1 15 19 1 4 4 . 2 7 6 4 10 5 . 3 3 6 5 6 1 7 1 . 5 . 5 2 . 35 15 Energy Gun 26 | 1 3 . 3 . . . . . . . . . 1 . . . 1 1 2 2 . . . . 1 . . . . 5 6 Energy Cannon 10 | . . . . . . . . . . . . . . . . . . . . . . 3 . . 3 . . . . 2 2 Ballistic Gun 56 | 1 13 1 5 12 . . . . . . . 3 4 2 . . . . . . . . . . . . 2 . . 13 . Ballistic Cannon 32 | . . . 2 . . . . . 1 1 4 1 4 . . . 2 1 . . . . . . 1 . 1 2 . 7 5 Launcher 24 | . . . 3 3 . 3 3 . 1 3 1 . . . . . . . . 2 . 4 . . . . 1 . . . . Special Weapon 10 | . 8 . . . . . . . . . . . . . . . . . . . 1 . . . . . . . . 1 . Impact Weapon . | . . . . . . . . . . . . . . . . . . . . . . . . . . . . . . . . Slashing Weapon 27 | . . . 2 4 1 1 1 . . 3 1 . 1 1 . . . 3 . 1 . . . . . . 1 . . 6 1 Piercing Weapon 11 | . . . . . . . . . . . . . . . . 3 . 1 3 1 . . 1 . . . . . . 1 1 Special Melee Weapon 2 | . . . . . . . . . . . . . . 2 . . . . . . . . . . . . . . . . . Unidentified Prototypes 49 | . . . . 2 . 1 . . . 1 . . 6 1 . . . . 8 1 . 2 2 1 3 1 3 . . 7 10 Parts Lost 78 | . . . . 1 . . . . . 1 . 1 6 1 6 1 1 12 . . 1 1 . . . . . . 1 21 24 Power 10 | . . . . . . . . . . . . 1 1 . 1 . 1 2 . . . . . . . . . . . 2 2 Propulsion 20 | . . . . . . . . . . . . . 1 . 2 1 . 3 . . . . . . . . . . . 5 8 Utility 31 | . . . . . . . . . . . . . 1 . 2 . . 4 . . 1 1 . . . . . . 1 10 11 Weapon 17 | . . . . 1 . . . . . 1 . . 3 1 1 . . 3 . . . . . . . . . . . 4 3 Highest Loss Streak 16 | . . . . 1 . . . . . 1 . 1 3 1 5 1 1 6 . . 1 1 . . . . . . 1 16 4 Average Slot Usage (%) 88 | . 99 100 98 98 88 80 92 92 92 87 84 86 82 86 85 79 83 76 84 93 89 91 92 94 94 95 96 89 87 71 77 Engine 6 | . 14 14 11 11 11 8 12 15 15 15 9 4 2 8 11 8 6 4 2 . . . . . . . . . . . . Reactor 2 | . . . . . . . . . . . . . 9 4 . . . . 2 5 5 4 5 8 9 8 8 8 7 6 4 Treads 9 | . 28 28 22 21 22 . 4 15 15 15 . 21 14 10 . 1 11 7 2 . . . . . . . . . . 2 . Leg 3 | . . . . . . . 12 15 15 15 14 . . . . . . . 6 8 . . . . . . . . . . 3 Hover 6 | . . . . . . . . . . . . . . 2 18 8 . . 6 13 21 21 22 22 22 20 19 20 19 11 14 Device 10 | . 15 . . . . 6 6 7 7 6 9 4 8 12 3 8 9 15 22 23 22 9 10 11 8 12 10 8 11 13 6 Storage 10 | . . . 3 17 22 7 7 7 7 7 9 7 13 13 12 7 8 8 15 17 15 12 10 15 18 16 16 14 11 13 9 Processor 4 | . 2 . 7 1 . 6 7 7 7 7 6 6 6 6 6 5 5 2 . . . 9 10 9 9 8 8 8 7 . 8 Hackware 3 | . . . . . . 4 1 . . . 5 6 . . 11 14 11 7 5 5 12 10 7 4 8 12 13 12 15 1 . Protection 7 | . 10 28 20 13 11 . 5 7 7 . . 3 5 6 3 5 9 8 1 . . 3 5 7 4 4 4 4 6 8 20 Energy Gun 1 | . 2 18 4 . . . . . . . . . . . . . 3 2 2 6 . . . . . . . . . . . Ballistic Gun 5 | . 23 9 2 30 6 . . . . . . . 13 4 6 1 . . . . . . . . . . 2 . . 5 . Ballistic Cannon 2 | . . . 5 . . . . . . 1 14 19 5 12 . . 10 5 . . . . . . . . . . . 1 2 Launcher 3 | . . . 18 . 11 4 7 7 7 5 . . . . . . . . . . 5 9 10 9 9 8 4 1 . . . Slashing Weapon 2 | . . . 1 . 4 4 7 7 7 9 3 . . . 6 1 . 5 5 4 . . . . . . . 4 3 1 . Piercing Weapon 1 | . . . . . . . . . . . . . . . . 12 1 2 5 4 5 1 . 4 . . . . . . 2 Naked Turns . | . . . . . . . . . . . . . . . . . . . . . . . . . . . . . . . . Heaviest Build 168 | 10 15 15 42 50 50 56 41 41 41 112 128 142 148 70 55 48 92 85 120 132 122 131 118 154 160 159 163 161 153 168 160 Greatest Support 195 | 40 40 40 40 40 40 24 38 38 38 38 72 88 160 160 58 52 166 150 70 90 126 144 160 160 160 160 160 170 170 195 166 Greatest Overweight (x) 10 | . . . 1 2 1 2 2 1 1 2 4 2 1 1 . . . 10 2 3 1 1 . . . . 1 1 . 4 1 Average Overweight (x) . | . . . . . 1 . . . . 1 1 1 . . . . . . . 1 . . . . . . . . . . . Largest Inventory Capacity 32 | 4 4 4 10 14 14 14 8 8 8 28 24 28 32 12 12 10 18 18 18 18 18 18 18 24 24 24 24 24 24 24 14 Average Capacity 14 | 4 4 4 5 12 14 8 8 8 8 22 24 24 18 12 11 8 13 10 15 18 18 18 18 21 24 24 24 24 24 17 11 Most Carried 28 | 4 4 4 10 14 14 13 8 8 8 18 24 26 28 12 12 10 11 12 18 18 18 18 18 21 24 24 24 24 21 22 14 Average Carried 13 | 1 3 3 5 11 13 7 7 7 7 14 22 23 16 10 10 7 9 8 14 17 17 17 13 19 22 22 23 22 19 14 8 Final Capacity 28 | 4 4 4 10 14 14 8 8 8 8 24 24 28 12 12 8 10 12 10 18 18 18 18 18 24 24 24 24 24 24 14 8 Final Carried 26 | 4 4 4 10 14 14 7 8 8 8 18 22 26 12 12 7 10 11 6 18 18 18 18 18 21 24 24 23 22 21 12 1 Class Distribution -------------------- 27% | Mutant 14% | Derelict-Mutant 12% | Hacker-Mutant 5% | Scavenger-Mutant 5% | Alien-Mutant 4% | Commander-Mutant 3% | Hacker-Tank 3% | Alien-Tank 3% | Tank Dominant Class ---------------- Mutant | -10/Materials Mutant | -10/Mines Mutant | -9/Materials Tank | -9/Storage Mutant | -9/Recycling Sprinter | -7/Factory Mutant | -7/Lower Caves Derelict-Mutant | -7/Lower Caves Derelict-Mutant | -7/Data Miner Derelict-Mutant | -6/Proximity Caves Derelict-Mutant | -6/Factory Derelict-Skirmisher | -6/Extension Scavenger-Skirmisher | -6/Cetus Scavenger-Mutant | -6/Archives Scavenger-Mutant | -6/Hub_04(d) Scavenger-Mutant | -5/Factory Hacker-Tank | -5/Upper Caves Derelict-Mutant | -5/Upper Caves Mutant | -5/Warlord Mutant | -4/Proximity Caves Hacker-Mutant | -4/Factory Hacker-Mutant | -4/Armory Mutant | -4/Lab Hauler-Mutant | -3/Research Hacker-Mutant | -3/Testing Hacker-Mutant | -2/Research Hacker-Mutant | -2/Quarantine Hacker-Mutant | -2/Section 7 Alien-Mutant | -1/Access Alien-Tank | -1/Command Alien-Mutant | -1/Access_0 Resources | -11 -10 -10 -9 -9 -9 -7 -7 -7 -7 -6 -6 -6 -6 -6 -6 -5 -5 -5 -5 -4 -4 -4 -4 -3 -3 -2 -2 -2 -1 -1 -1 ----------- Run | Scr Mat Min Mat Sto Rec Fac Low Low Dat Pro Fac Ext Cet Arc Hub Fac Upp Upp War Pro Fac Arm Lab Res Tes Res Qua Sec Acc Com Ac0 Matter Collected 13547 | 291 577 42 625 1029 252 209 341 130 . 335 314 678 1078 431 27 196 392 552 . 310 . 847 . 279 315 156 272 136 164 2476 1093 Remotely 391 | . . . . . . . . . . . . . . . . . . . . 46 . 345 . . . . . . . . . Salvage Created 12976 | 87 590 142 1036 1149 9 96 176 32 . 400 367 322 1058 431 132 216 350 539 79 46 . 1197 . 280 135 . 155 241 164 3386 161 Parts 658 | 7 53 7 64 75 3 3 7 3 . 9 19 21 62 20 7 6 13 17 4 2 . 49 . 9 13 . 14 10 12 142 7 Haulers Intercepted 15 | . 2 . 5 6 . . . . . . . . . . . 1 . . . . . . . 1 . . . . . . . Recyclers Shooed 18 | . 6 1 3 3 1 . . . . . 1 . . . . . . . . . . . . . 1 . . . . 2 . Parts Field Recycled . | . . . . . . . . . . . . . . . . . . . . . . . . . . . . . . . . Retrieved Matter . | . . . . . . . . . . . . . . . . . . . . . . . . . . . . . . . . Parts Self-Destructed 125 | . . . . . . . 4 9 . 8 . . . . . . 16 20 66 2 . . . . . . . . . . . Prevented 11 | . . . . . . . . . . . . . . . . . . . 11 . . . . . . . . . . . . Kills | -11 -10 -10 -9 -9 -9 -7 -7 -7 -7 -6 -6 -6 -6 -6 -6 -5 -5 -5 -5 -4 -4 -4 -4 -3 -3 -2 -2 -2 -1 -1 -1 ------- Run | Scr Mat Min Mat Sto Rec Fac Low Low Dat Pro Fac Ext Cet Arc Hub Fac Upp Upp War Pro Fac Arm Lab Res Tes Res Qua Sec Acc Com Ac0 Combat Hostiles Destroyed 214 | . 11 4 26 16 4 . 7 1 . 9 7 9 19 4 1 . 7 11 1 2 . 27 . 2 5 . 2 5 . 31 3 Melee 6 | . . . . . . . . . . 2 . 1 . . . . . 1 . . . . . . . . . 2 . . . Guns 85 | . 11 4 1 15 . . . . . . . . 17 . 1 . 3 3 1 2 . . . . . . 2 . . 25 . Cannons 39 | . . . 2 . . . . . . 1 4 8 2 4 . . 4 7 . . . . . . . . . . . 4 3 AOE 78 | . . . 23 1 4 . 7 1 . 6 3 . . . . . . . . . . 23 . 2 5 . . 3 . . . Classes Destroyed 21 | 2 7 . 3 . 1 . 2 1 . . . . . . . . . . 1 1 . 3 . . . . . . . . . Worker 22 | . 1 . 12 1 . . . . . . . . . . . . . . . . . . . . 1 . 1 . 1 5 . Builder 7 | . 2 . 1 . . . . . . . . . . . . . . . . . . . . 1 2 . . . 1 . . Tunneler 4 | 1 1 . 1 . . . . . . . 1 . . . . . . . . . . . . . . . . . . . . Hauler 15 | . 2 . 5 6 . . . . . . . . . . . 1 . . . . . . . 1 . . . . . . . Recycler 12 | 1 . . 3 1 . 1 . . . . 1 . . . . 1 . . . . . . . 1 . . . . 1 2 . Minesweeper 2 | . . . . . . . 1 1 . . . . . . . . . . . . . . . . . . . . . . . Mechanic 1 | . . . . . . . . . . . . . . . . . . . . . . 1 . . . . . . . . . Operator 14 | . 1 . . . . 1 . . . . . . . 9 . . . . . . . . . 1 1 . . 1 . . . Drone 4 | . . . . . 4 . . . . . . . . . . . . . . . . . . . . . . . . . . Watcher 18 | . 3 . 2 1 . . . . . . . 2 1 . 2 . . . . . . 2 . 1 . . . 1 . 3 . Swarmer 54 | . 3 2 8 . . . . . . . . 4 8 . . . . 2 . . . 11 . . 5 . . 4 . 7 . Saboteur 1 | . . . . . . . . . . . . . . . . . . . . . . 1 . . . . . . . . . Grunt 74 | . 8 2 13 7 . . 4 . . 6 4 2 5 . 1 . 7 8 . . . 6 . . . . . 1 . . . Brawler 4 | . . . 1 1 . . . . . . . . 1 . . . . . . . . . . . . . . . . 1 . Duelist 7 | . . . 1 . . . . . . 2 . . . . . . . . . . . 4 . . . . . . . . . Sentry 23 | . . . 3 8 . . 1 . . . 1 3 . 4 . . . 1 . . . 2 . . . . . . . . . Demolisher 2 | . . . . . . . . . . . . . . . . . . . . 2 . . . . . . . . . . . Specialist 2 | . . . . . . . . . . . . . . . . . . . . . . 2 . . . . . . . . . Hunter 12 | . . . . . . . 2 . . 1 . . 1 . . . . . . . . . . 2 . . . . . 6 . Programmer 17 | . . . . . . . . 1 . . 2 . . . . . . . . . . 1 . . . . . . . 13 . Cetus Guard 4 | . . . . . . . . . . . . . 4 . . . . . . . . . . . . . . . . . . Quarantine Guard 2 | . . . . . . . . . . . . . . . . . . . . . . . . . . . 2 . . . . M Guard 2 | . . . . . . . . . . . . . . . . . . . . . . . . . . . . . . 2 . Enhanced Grunt 4 | . . . . . . . . . . 1 . . . . . . . . . . . . . . . . . . . . 3 Combat Programmer 2 | . . . . . . . . . . . . . . . . . . . . . . . . . . . . . . 2 . Decomposer 1 | . . . . . . . . . . . . . . . . . . 1 . . . . . . . . . . . . . Thug 1 | . . . . . . . . . . . . . 1 . . . . . . . . . . . . . . . . . . Guerrilla 1 | . . . . . . . . . . . . . 1 . . . . . . . . . . . . . . . . . . Mutant 1 | . . . . . . . . . . . . . . . . . . . 1 . . . . . . . . . . . . Best Kill Streak 14 | 2 3 2 14 6 3 1 3 1 . 4 4 5 4 3 2 1 5 4 1 1 . 12 . 2 6 . 2 5 2 6 3 Combat Bots Only 10 | . 3 2 8 5 3 . 3 1 . 4 4 4 4 2 1 . 5 4 1 1 . 10 . 1 5 . 2 4 . 5 3 Max Kills in Single Turn 5 | 1 2 1 3 2 2 1 1 1 . 3 1 1 1 1 2 1 1 1 1 1 . 5 . 2 3 . 1 2 1 2 1 Gunslinging . | . . . . . . . . . . . . . . . . . . . . . . . . . . . . . . . . Exploded 5 | . . . 2 1 2 . 1 1 . 3 1 . . . . . . . . . . 5 . 1 2 . . 2 . . . Melee 1 | . . . . . . . . . . 1 . 1 . . . . . 1 . . . . . . . . . 1 . . . Uniques/NPCs Destroyed 4 | . . . . . . . . . . . . . 1 . . . . . . . . . . . . . . . . 2 1 A7 (-6/Cetus) MAIN.C Shell (-1/Command) MAIN.C (-1/Command) A8 (-1/Access_0) Combat | -11 -10 -10 -9 -9 -9 -7 -7 -7 -7 -6 -6 -6 -6 -6 -6 -5 -5 -5 -5 -4 -4 -4 -4 -3 -3 -2 -2 -2 -1 -1 -1 -------- Run | Scr Mat Min Mat Sto Rec Fac Low Low Dat Pro Fac Ext Cet Arc Hub Fac Upp Upp War Pro Fac Arm Lab Res Tes Res Qua Sec Acc Com Ac0 Damage Taken 29079 | . 459 137 194 642 . . 102 118 . 124 316 601 3050 191 1156 323 909 2734 335 242 157 391 . 187 170 . 136 991 633 5356 9425 Core 2975 | . 54 . 18 68 . . 15 . . 10 36 43 215 26 188 . 34 257 29 28 15 110 . 44 58 . 40 240 . 275 1172 Absorbed by Shields 2696 | . . . . . . . . . . . 35 203 10 . . . . 67 321 235 99 146 . 199 175 . 139 808 133 126 . Reduced by Siege Mode 462 | . . . . . . . . . . . . . 167 26 . . 64 153 . . . . . . . . . . . 52 . Redirected to Core 236 | . . . . . . . . . . . . . . . . . . . . . . . . . . . 16 220 . . . Core Remaining (%) 72 | 100 . 78 . . 78 . . . . 96 . . . . 40 . . . . 65 . . 89 . 92 . . 83 . . . Volleys Fired 816 | 9 91 10 46 51 4 1 17 6 . 16 15 18 54 33 5 . 16 24 4 8 1 48 10 10 24 . 24 12 . 140 119 Largest 3 | 1 2 2 3 3 1 1 1 1 . 1 3 3 3 3 1 . 3 3 1 2 1 2 1 1 1 . 1 1 . 3 3 Hottest 260 | 20 100 80 111 69 39 39 39 39 . 53 150 141 141 141 35 . 187 187 60 120 40 120 120 80 120 . 105 80 . 200 260 Shots Fired 1350 | 9 156 20 72 149 4 1 17 6 . 16 36 52 152 61 6 . 36 60 4 16 1 56 10 10 24 . 24 12 . 206 134 Gun 725 | 9 130 20 8 148 . . . . . . . . 131 29 6 . 10 19 4 16 . . . . . . 14 . . 144 37 Cannon 454 | . . . 19 . . . . . . 5 33 52 21 32 . . 26 41 . . . 20 10 . 18 . 10 8 . 62 97 Launcher 144 | . . . 45 1 4 1 17 6 . 11 3 . . . . . . . . . . 36 . 10 6 . . 4 . . . Special 27 | . 26 . . . . . . . . . . . . . . . . . . . 1 . . . . . . . . . . Kinetic 987 | 9 129 . 21 148 . . . . . 5 33 52 152 61 6 . 26 41 . . . . . . . . 15 8 . 188 93 Thermal 116 | . 26 . . . . . . . . . . . . . . . 10 19 . . . 20 10 . 18 . 9 . . . 4 Explosive 122 | . . . 45 1 4 1 17 6 . 11 3 . . . . . . . . . . 14 . 10 6 . . 4 . . . Electromagnetic 67 | . 1 20 6 . . . . . . . . . . . . . . . . . . 22 . . . . . . . 18 . Slashing 37 | . . . . . . . . . . . . . . . . . . . . . . . . . . . . . . . 37 Entropic 20 | . . . . . . . . . . . . . . . . . . . 4 16 . . . . . . . . . . . Robot Hit Streak 40 | 3 9 6 7 26 17 18 . . . 22 9 11 40 24 . . 25 31 1 5 1 11 . 10 15 . 17 4 . 33 18 Robot Miss Streak 7 | 1 5 2 4 2 . . . . . 2 6 7 7 3 1 . 5 4 3 4 . 1 . . . . 2 . . 6 2 Penetration Max 2 | . . . . . . . . . . . . . 1 1 . . . . . . . . . . . . . . . 2 . Secondary Targets 6 | . . . . 2 . . . . . . . . 4 . . . . . . . . . . . . . . . . . . Max Gunslinging Chain 1 | . . . . 1 . . . . . . . . 1 . . . . . . . . . . . . . . . . . . Shots Hit Robots 1033 | 6 78 12 35 108 6 8 2 1 . 17 34 42 145 52 . 5 33 64 2 13 1 24 . 11 5 . 19 11 4 205 90 Core Hits 894 | 3 32 6 69 38 4 4 19 4 . 28 38 47 176 58 4 3 39 51 2 9 . 76 . 15 18 . 5 10 3 106 27 Critical Hits 133 | . 1 . . 1 . . . . . . . . . 9 1 . 2 4 . . . . . . . . 11 4 . 77 23 Critical Kills 43 | . . . . . . . . . . . . . . 4 1 . 1 2 . . . . . . . . 2 2 . 28 3 Critical Parts Destroyed 63 | . . . . 1 . . . . . . . . . 4 . . 1 2 . . . . . . . . 4 2 . 43 6 Melee Attacks 266 | . . . 10 9 4 10 5 2 . 9 5 . 6 1 3 12 . 20 . 5 3 . . 5 1 . 6 35 9 61 45 Impact . | . . . . . . . . . . . . . . . . . . . . . . . . . . . . . . . . Slashing 201 | . . . 10 9 4 10 5 2 . 9 5 . 6 . 3 3 . 6 . 5 . . . . . . 6 35 9 61 13 Piercing 55 | . . . . . . . . . . . . . . . . 9 . 14 . . . . . . . . . . . . 32 Entropic 9 | . . . . . . . . . . . . . . . . . . . . . 3 . . 5 1 . . . . . . Sneak Attacks 43 | . . . 7 . 2 3 1 1 . 7 2 . 6 1 . 3 . 1 . . . . . 3 . . . . 3 3 . Combat Hostiles . | . . . . . . . . . . . . . . . . . . . . . . . . . . . . . . . . Follow-up Attacks 4 | . . . . . . . . . . 1 . . . . . 1 . 1 . . . . . . . . . . . . 1 Damage Inflicted 54006 | 85 1105 222 3848 1861 590 540 788 225 . 1966 1263 751 3613 1428 397 437 863 1684 159 436 . 5396 . 1810 1897 . 575 1322 863 13681 6201 Guns 9262 | 85 1048 200 65 1601 . . . . . . . . 2897 677 28 . 168 239 159 436 . . . . . . 144 . . 1515 . Cannons 11381 | . . . 287 . . . . . . 98 658 713 251 744 . . 689 947 . . . 82 . . 203 . . 35 . 1686 4988 Explosions 14635 | . . . 2612 192 365 20 669 118 . 1062 355 . . . 369 . . . . . . 5314 . 821 1694 . . 695 . 349 . Melee 18306 | . . . 798 . 219 520 119 107 . 806 223 . 462 . . 437 . 490 . . . . . 989 . . 431 592 863 10037 1213 Ramming 422 | . 57 22 86 68 6 . . . . . 27 38 3 7 . . 6 8 . . . . . . . . . . . 94 . Kinetic 18884 | 85 1048 . 319 1601 . . . . . 98 658 713 3148 1421 28 . 689 947 . . . . . . . . 144 35 . 2962 4988 Thermal 1537 | . . . . . . . . . . . . . . . . . 168 239 . . . 578 . . 203 . . . . 349 . Explosive 11569 | . . . 2612 192 365 20 669 118 . 1062 355 . . . . . . . . . . 3574 . 821 1086 . . 695 . . . Electromagnetic 2693 | . . 200 33 . . . . . . . . . . . 369 . . . . . . 1244 . . 608 . . . . 239 . Impact . | . . . . . . . . . . . . . . . . . . . . . . . . . . . . . . . . Slashing 15934 | . . . 798 . 219 520 119 107 . 806 223 . 462 . . 184 . 38 . . . . . . . . 431 592 863 10037 535 Piercing 1383 | . . . . . . . . . . . . . . . . 253 . 452 . . . . . . . . . . . . 678 Entropic 1584 | . . . . . . . . . . . . . . . . . . . 159 436 . . . 989 . . . . . . . Highest Corruption 14 | . . . 1 1 1 . . . . . . . . . 14 1 1 1 1 . . . . . 2 . . . . . . Average Corruption 1 | . . . 1 1 1 . . . . . . . . . 4 1 1 1 1 . . . . . 2 . . . . . . Corruption Purged . | . . . . . . . . . . . . . . . . . . . . . . . . . . . . . . . . Effects 34 | . . . 4 8 2 . . . . . . . . . 1 2 5 10 . . . . . . 2 . . . . . . Message Errors 16 | . . . 3 4 1 . . . . . . . . . . 1 1 4 . . . . . . 2 . . . . . . Energy Discharges 6 | . . . . 1 . . . . . . . . . . . . 3 2 . . . . . . . . . . . . . Data Loss (minor) 7 | . . . . 1 1 . . . . . . . . . . 1 1 3 . . . . . . . . . . . . . Misfires 1 | . . . . . . . . . . . . . . . 1 . . . . . . . . . . . . . . . . Targeting Errors 1 | . . . 1 . . . . . . . . . . . . . . . . . . . . . . . . . . . . Weapon Failures 3 | . . . . 2 . . . . . . . . . . . . . 1 . . . . . . . . . . . . . Overload Shots . | . . . . . . . . . . . . . . . . . . . . . . . . . . . . . . . . Overflow Damage 4116 | . . . 285 . 90 98 44 . . 149 103 1 74 2 37 . . . . . . 299 . 251 214 . . 105 257 2002 105 Projectiles 124 | . . . . . . . . . . . . 1 . 1 . . . . . . . . . . 14 . . . . 9 99 Explosions 681 | . . . 52 . 20 . . . . 40 . . . . 37 . . . . . . 299 . 20 200 . . 13 . . . Melee 3311 | . . . 233 . 70 98 44 . . 109 103 . 74 1 . . . . . . . . . 231 . . . 92 257 1993 6 Knockbacks 139 | . . . 3 . 1 . . . . 1 4 19 6 2 . . 25 25 . . . . . . . . . . . 17 36 Impact 1 | . . . . . 1 . . . . . . . . . . . . . . . . . . . . . . . . . . Kinetic 125 | . . . 3 . . . . . . 1 4 17 6 2 . . 18 22 . . . . . . . . . . . 17 35 Secondary 13 | . . . . . . . . . . . . 2 . . . . 7 3 . . . . . . . . . . . . 1 Self-Inflicted Damage 793 | . . . . 30 . . . 89 . 49 . . . . 92 . . . . . . 5 . 35 209 . . 132 . 152 . Shots 16 | . . . . 1 . . . 2 . 3 . . . . 1 . . . . . . 2 . 1 3 . . 2 . 1 . Rammed 54 | 2 16 2 14 11 1 . . . . . . 3 1 1 . . 1 2 . . . . . . . . . . . . . Targets Rammed 62 | 2 18 2 16 12 1 . . . . . 1 5 1 1 . . 1 2 . . . . . . . . . . . . . Kicked 1 | . . . . . . . . . . . 1 . . . . . . . . . . . . . . . . . . . . Crushed 7 | . 2 . 2 1 . . . . . . . 2 . . . . . . . . . . . . . . . . . . . Highest Temperature 295 | . 72 158 126 102 . . 18 12 . 60 246 295 183 63 . . 199 198 . 144 13 198 190 58 247 . 100 . . . 36 Average Temperature 57 | . 24 70 28 19 . . 5 6 . 24 76 113 52 28 . . 117 117 . 51 13 76 72 28 49 . 11 . . . 36 Received Heat Transfer 3291 | . 177 66 48 231 . . 36 . . 36 59 85 642 18 57 63 405 798 18 . 25 56 . 5 . . . 64 . 135 267 Effects 1 | . . . . . . . . . . . . 1 . . . . . . . . . . . . . . . . . . . Energy Bleed 1 | . . . . . . . . . . . . 1 . . . . . . . . . . . . . . . . . . . Siege Activations 24 | . . . . . . . . . . . . . 7 7 . . 2 3 . . . . . . . . . . . 5 . Total Turns 466 | . . . . . . . . . . . . . 141 107 . . 29 57 . . . . . . . . . . . 132 . Longest Duration 48 | . . . . . . . . . . . . . 46 29 . . 17 31 . . . . . . . . . . . 48 . Robots Corrupted 8 | . . . . . . . . . . . . . . . . . . . . . . 6 . . . . . . . 2 . Combat Hostiles 6 | . . . . . . . . . . . . . . . . . . . . . . 4 . . . . . . . 2 . Parts Fried 17 | . . 1 . . . . . . . . . . . 2 1 . . . . . . 9 . . 4 . . . . . . Impact Corruptions 1 | . . . . . . . . . . . . . . 1 . . . . . . . . . . . . . . . . . Robots Melted . | . . . . . . . . . . . . . . . . . . . . . . . . . . . . . . . . Combat Hostiles . | . . . . . . . . . . . . . . . . . . . . . . . . . . . . . . . . Parts Melted . | . . . . . . . . . . . . . . . . . . . . . . . . . . . . . . . . Heat Transferred 1450 | . . . . . . . . . . . . . . . . . 259 370 . . . 505 . . 185 . . . . 131 . Parts Sabotaged . | . . . . . . . . . . . . . . . . . . . . . . . . . . . . . . . . Parts Stolen . | . . . . . . . . . . . . . . . . . . . . . . . . . . . . . . . . Parts Stripped . | . . . . . . . . . . . . . . . . . . . . . . . . . . . . . . . . Power Chain Reactions 5 | . . . . . . . . . . . . . . . . . . . . . . 3 . . . . . . . 2 . Missiles Intercepted . | . . . . . . . . . . . . . . . . . . . . . . . . . . . . . . . . Alert | -11 -10 -10 -9 -9 -9 -7 -7 -7 -7 -6 -6 -6 -6 -6 -6 -5 -5 -5 -5 -4 -4 -4 -4 -3 -3 -2 -2 -2 -1 -1 -1 ------- Run | Scr Mat Min Mat Sto Rec Fac Low Low Dat Pro Fac Ext Cet Arc Hub Fac Upp Upp War Pro Fac Arm Lab Res Tes Res Qua Sec Acc Com Ac0 Peak Influence 1727 | 10 195 139 903 586 402 984 . . . . 209 224 307 281 444 190 . . . . 109 1727 . 283 1186 744 448 480 288 418 . Initial 984 | . 6 19 53 332 147 984 . . . . 65 28 124 56 28 91 . . . . . 48 . . 46 657 418 82 288 160 . Average 260 | 7 44 113 498 219 305 967 . . . . 88 79 186 200 143 145 . . . . 26 764 . 121 565 706 66 324 175 257 . Maximum Alert Level 5 | . . . 3 2 2 3 . . . . 1 1 1 1 2 . . . . . . 5 . 1 4 3 2 2 1 3 . Low Security (%) 53 | 100 100 100 18 57 11 . . . . . 81 94 63 45 77 100 . . . . 100 9 . 83 24 . 92 16 67 11 . Level 1 21 | . . . 22 32 73 . . . . . 18 5 36 54 13 . . . . . . 7 . 16 21 . 2 61 32 38 . Level 2 8 | . . . 17 10 14 . . . . . . . . . 8 . . . . . . 22 . . 19 41 4 22 . 8 . Level 3 14 | . . . 40 . . 100 . . . . . . . . . . . . . . . 46 . . 3 58 . . . 41 . Level 4 1 | . . . . . . . . . . . . . . . . . . . . . . 9 . . 29 . . . . . . Level 5 . | . . . . . . . . . . . . . . . . . . . . . . 5 . . . . . . . . . High Security . | . . . . . . . . . . . . . . . . . . . . . . . . . . . . . . . . Max Security . | . . . . . . . . . . . . . . . . . . . . . . . . . . . . . . . . Squads Dispatched 58 | . 2 . 8 4 . 1 . . . . 1 . . . 9 . . . . . 1 9 . 4 11 1 1 1 . 5 . Investigation 17 | . 1 . 4 2 . . . . . . . . . . 6 . . . . . . 2 . . . 1 1 . . . . Extermination 9 | . . . . . . . . . . . 1 . . . . . . . . . . 3 . . 1 . . . . 4 . Reinforcement 21 | . 1 . 2 . . 1 . . . . . . . . 2 . . . . . 1 1 . 4 8 . . 1 . . . Assault 10 | . . . 2 2 . . . . . . . . . . 1 . . . . . . 3 . . 1 . . . . 1 . Garrison 1 | . . . . . . . . . . . . . . . . . . . . . . . . . 1 . . . . . . Intercept . | . . . . . . . . . . . . . . . . . . . . . . . . . . . . . . . . Construction Impeded 3 | . . . 1 . . . . . . . . . . . 1 . . . . . . . . . 1 . . . . . . Haulers Reinforced 3 | . . . . . . . . . . . . . . . . . . . . . . . . 1 2 . . . . . . Stealth | -11 -10 -10 -9 -9 -9 -7 -7 -7 -7 -6 -6 -6 -6 -6 -6 -5 -5 -5 -5 -4 -4 -4 -4 -3 -3 -2 -2 -2 -1 -1 -1 --------- Run | Scr Mat Min Mat Sto Rec Fac Low Low Dat Pro Fac Ext Cet Arc Hub Fac Upp Upp War Pro Fac Arm Lab Res Tes Res Qua Sec Acc Com Ac0 Distress Signals 97 | . . . 3 6 . 1 1 . . . 1 4 2 . 1 . . . 1 43 . 1 . 9 2 1 . 3 . 18 . Communications Jammed . | . . . . . . . . . . . . . . . . . . . . . . . . . . . . . . . . Distress Signals . | . . . . . . . . . . . . . . . . . . . . . . . . . . . . . . . . Times Spotted 507 | . 26 6 29 27 9 4 2 1 . 9 11 22 28 23 18 5 8 17 12 9 8 55 . 9 18 2 11 22 5 61 50 Peak Tracking Total 15 | . 3 2 6 4 2 2 3 1 . 4 5 7 5 1 15 5 5 5 8 3 8 8 . 3 6 1 4 7 4 7 10 Tactical Retreats 32 | . . 1 . 1 . . . . . 1 . . . . 1 . . 1 1 . . 6 . 1 2 . 1 2 . 6 8 Traps | -11 -10 -10 -9 -9 -9 -7 -7 -7 -7 -6 -6 -6 -6 -6 -6 -5 -5 -5 -5 -4 -4 -4 -4 -3 -3 -2 -2 -2 -1 -1 -1 ------- Run | Scr Mat Min Mat Sto Rec Fac Low Low Dat Pro Fac Ext Cet Arc Hub Fac Upp Upp War Pro Fac Arm Lab Res Tes Res Qua Sec Acc Com Ac0 Traps Triggered 24 | . 1 . 1 2 . . . . . . 1 5 . . . 1 . . . . 2 1 . . 1 . 1 1 . 7 . Indirectly 2 | . . . . . . . . . . . . . . . . . . . . . . 1 . . 1 . . . . . . Trap Hack Attempts . | . . . . . . . . . . . . . . . . . . . . . . . . . . . . . . . . Triggered . | . . . . . . . . . . . . . . . . . . . . . . . . . . . . . . . . Disarmed . | . . . . . . . . . . . . . . . . . . . . . . . . . . . . . . . . Reprogrammed 15 | . . . . . . . . . . . . . . . . . . . . . . 15 . . . . . . . . . Reused 4 | . . . . . . . . . . . . . . . . . . . . . . 4 . . . . . . . . . Traps Extracted . | . . . . . . . . . . . . . . . . . . . . . . . . . . . . . . . . Installed . | . . . . . . . . . . . . . . . . . . . . . . . . . . . . . . . . Triggered 45 | . . . . . . . . . . . . . . . . . . . 41 . . 4 . . . . . . . . . Machines | -11 -10 -10 -9 -9 -9 -7 -7 -7 -7 -6 -6 -6 -6 -6 -6 -5 -5 -5 -5 -4 -4 -4 -4 -3 -3 -2 -2 -2 -1 -1 -1 ---------- Run | Scr Mat Min Mat Sto Rec Fac Low Low Dat Pro Fac Ext Cet Arc Hub Fac Upp Upp War Pro Fac Arm Lab Res Tes Res Qua Sec Acc Com Ac0 Machines Disabled 90 | . . . 15 3 4 . . . . . . 2 . 5 7 . . . . 5 . 9 2 . 11 . 7 7 2 3 8 Max in Single Turn 6 | . . . 2 1 2 . . . . . . . . 1 6 . . . . 1 . 2 1 . 4 . 1 1 1 1 1 Garrison Access 5 | . . . . . . . . . . . . . . . 1 . . . . . . . . 1 1 2 . . . . . Network Hub 4 | . . . . . . . . . . . . . . . 4 . . . . . . . . . . . . . . . . Machines Sabotaged 2 | . . . . . . . . . . . . . . . 2 . . . . . . . . . . . . . . . . Garrisons Compromised . | . . . . . . . . . . . . . . . . . . . . . . . . . . . . . . . . Overloaded Fab Kills . | . . . . . . . . . . . . . . . . . . . . . . . . . . . . . . . . Fab Network Shutdowns 1 | . . . . . . . . . . . . . . . . . . . . . . 1 . . . . . . . . . Hacking | -11 -10 -10 -9 -9 -9 -7 -7 -7 -7 -6 -6 -6 -6 -6 -6 -5 -5 -5 -5 -4 -4 -4 -4 -3 -3 -2 -2 -2 -1 -1 -1 --------- Run | Scr Mat Min Mat Sto Rec Fac Low Low Dat Pro Fac Ext Cet Arc Hub Fac Upp Upp War Pro Fac Arm Lab Res Tes Res Qua Sec Acc Com Ac0 Machines Accessed 115 | . 9 . 8 12 6 2 1 1 3 . 1 . . . 6 4 . 1 2 . 4 15 . 7 9 6 13 2 3 . . Terminals 69 | . 6 . 6 10 3 1 . . . . 1 . . . 6 1 . . . . 3 9 . 4 5 . 10 2 2 . . Fabricators 12 | . . . . . . . . . . . . . . . . 1 . . . . 1 6 . 1 1 2 . . . . . Repair Stations 4 | . 1 . . . . 1 . . . . . . . . . . . . . . . . . . . . 1 . 1 . . Recycling Units 10 | . 2 . 2 2 3 . . . . . . . . . . . . . . . . . . . . 1 . . . . . Scanalyzers 7 | . . . . . . . . . . . . . . . . 1 . . . . . . . 1 2 1 2 . . . . Garrison Access 5 | . . . . . . . . . . . . . . . . 1 . . . . . . . 1 1 2 . . . . . Total Hacks 571 | . 28 . 21 37 18 5 1 1 19 . 8 . . . 40 33 . 1 2 . 27 106 . 58 47 28 59 10 22 . . Successful 315 | . 17 . 8 22 11 1 1 1 19 . 3 . . . 14 20 . 1 2 . 17 59 . 29 27 17 30 5 11 . . Failed 252 | . 11 . 13 15 6 4 . . . . 5 . . . 26 12 . . . . 9 46 . 29 20 11 29 5 11 . . Catastrophic 22 | . 3 . 2 1 . . . . . . . . . . 1 . . . . . . 3 . 3 3 . 3 1 2 . . Database Lockouts 4 | . . . . . 1 . . . . . . . . . . 1 . . . . 1 1 . . . . . . . . . Manual 195 | . 14 . 4 19 11 2 . . . . 6 . . . 15 17 . . 1 . 8 39 . 20 21 6 5 4 3 . . Terminals 378 | . 21 . 19 35 14 2 . . . . 8 . . . 40 16 . . . . 22 68 . 26 25 . 53 10 19 . . Fabricators 89 | . . . . . . . . . . . . . . . . 6 . . . . 5 38 . 18 9 13 . . . . . Repair Stations 10 | . 2 . . . . 3 . . . . . . . . . . . . . . . . . . . . 2 . 3 . . Recycling Units 16 | . 5 . 2 2 4 . . . . . . . . . . . . . . . . . . . . 3 . . . . . Scanalyzers 40 | . . . . . . . . . . . . . . . . 7 . . . . . . . 12 7 10 4 . . . . Garrison Access 14 | . . . . . . . . . . . . . . . . 4 . . . . . . . 2 6 2 . . . . . Terminal Hacks 184 | . 12 . 6 17 7 . 1 1 19 . 2 . . . 9 10 . 1 2 . 14 32 . 7 10 . 24 3 7 . . Record 3 | . . . . . . . . . 3 . . . . . . . . . . . . . . . . . . . . . . Part Schematic 18 | . . . . . 3 . . . 8 . 1 . . . . . . . . . 1 4 . . . . 1 . . . . Robot Schematic 7 | . 1 . . 1 . . . . 5 . . . . . . . . . . . . . . . . . . . . . . Robot Analysis 6 | . 3 . . . . . . . . . . . . . 1 . . . . . . . . . 1 . 1 . . . . Prototype ID Bank 40 | . 2 . 3 2 2 . . . 3 . . . . . 2 2 . . . . 4 5 . 3 5 . 4 1 2 . . Open Door 9 | . . . . 2 . . 1 1 . . . . . . . . . 1 2 . . . . . . . 1 1 . . . Level Access Points 4 | . . . . . 1 . . . . . . . . . 1 1 . . . . . 1 . . . . . . . . . Branch Access Points 6 | . . . 1 . . . . . . . 1 . . . . 1 . . . . 1 . . 1 . . . . 1 . . Emergency Access Points 1 | . . . . . . . . . . . . . . . . 1 . . . . . . . . . . . . . . . Machine Index 1 | . . . . . . . . . . . . . . . . . . . . . . 1 . . . . . . . . . Terminal Index 5 | . 1 . . 1 . . . . . . . . . . 1 . . . . . . . . 1 . . 1 . . . . Fabricator Index 3 | . . . . . . . . . . . . . . . . 1 . . . . 1 1 . . . . . . . . . Scanalyzer Index 1 | . . . . 1 . . . . . . . . . . . . . . . . . . . . . . . . . . . Garrison Index 4 | . . . . 1 . . . . . . . . . . . . . . . . . . . 1 . . 1 . 1 . . Alert Level 13 | . . . . 3 1 . . . . . . . . . . 1 . . . . 1 2 . . 1 . 3 . 1 . . Unreport Threat 16 | . . . . 2 . . . . . . . . . . 2 . . . . . . 5 . . . . 5 1 1 . . Locate Traps 17 | . 2 . . 1 . . . . . . . . . . 2 . . . . . 2 4 . . 1 . 5 . . . . Reprogram Traps 4 | . . . . . . . . . . . . . . . . . . . . . . 4 . . . . . . . . . Patrol Status 6 | . 1 . 1 1 . . . . . . . . . . . 1 . . . . . 1 . 1 . . . . . . . Recall Extermination 1 | . . . . . . . . . . . . . . . . . . . . . . 1 . . . . . . . . . Hauler Manifests 4 | . . . 1 1 . . . . . . . . . . . 1 . . . . 1 . . . . . . . . . . Registered Components 1 | . . . . . . . . . . . . . . . . . . . . . 1 . . . . . . . . . . Registered Prototypes 1 | . . . . . . . . . . . . . . . . . . . . . 1 . . . . . . . . . . Zone Layout 12 | . 2 . . 1 . . . . . . . . . . . 1 . . . . 1 3 . . 1 . 2 . 1 . . Protovariant Controls 1 | . . . . . . . . . . . . . . . . . . . . . . . . . 1 . . . . . . Fabricator Hacks 41 | . . . . . . . . . . . . . . . . 2 . . . . 2 16 . 10 6 5 . . . . . Load Schematic 13 | . . . . . . . . . . . . . . . . 1 . . . . 1 5 . 1 3 2 . . . . . Build 28 | . . . . . . . . . . . . . . . . 1 . . . . 1 11 . 9 3 3 . . . . . Repair Station Hacks 6 | . 1 . . . . 1 . . . . . . . . . . . . . . . . . . . . 2 . 2 . . Scan Component 3 | . 1 . . . . . . . . . . . . . . . . . . . . . . . . . 1 . 1 . . Repair 2 | . . . . . . . . . . . . . . . . . . . . . . . . . . . 1 . 1 . . Refit 1 | . . . . . . 1 . . . . . . . . . . . . . . . . . . . . . . . . . Recycling Unit Hacks 2 | . 1 . . . . . . . . . . . . . . . . . . . . . . . . 1 . . . . . Report Inventory 1 | . 1 . . . . . . . . . . . . . . . . . . . . . . . . . . . . . . Retrieve Components 1 | . . . . . . . . . . . . . . . . . . . . . . . . . . 1 . . . . . Scanalyzer 19 | . . . . . . . . . . . . . . . . 4 . . . . . . . 6 2 6 1 . . . . Insert Component 14 | . . . . . . . . . . . . . . . . 3 . . . . . . . 6 2 2 1 . . . . Analyze 5 | . . . . . . . . . . . . . . . . 1 . . . . . . . . . 4 . . . . . Garrison Access Hacks 4 | . . . . . . . . . . . . . . . . . . . . . . . . 1 1 2 . . . . . Seal Access 4 | . . . . . . . . . . . . . . . . . . . . . . . . 1 1 2 . . . . . Unauthorized Hacks 59 | . 3 . 2 5 4 . . . . . 1 . . . 5 4 . . . . 1 11 . 5 8 3 3 2 2 . . Terminals 31 | . 2 . . 3 1 . . . . . 1 . . . 5 2 . . . . 1 4 . 3 3 . 2 2 2 . . Track 5 | . 2 . . . . . . . . . . . . . 1 . . . . . . . . . 1 . . 1 . . . Assimilate 6 | . . . . . . . . . . . 1 . . . 1 . . . . . 1 . . 1 1 . . . 1 . . Botnet 15 | . . . . 2 1 . . . . . . . . . 1 1 . . . . . 3 . 2 1 . 2 1 1 . . Disrupt 1 | . . . . . . . . . . . . . . . . 1 . . . . . . . . . . . . . . . Operators 2 | . . . . 1 . . . . . . . . . . . . . . . . . 1 . . . . . . . . . Sabotage 2 | . . . . . . . . . . . . . . . 2 . . . . . . . . . . . . . . . . Fabricators 14 | . . . . . . . . . . . . . . . . 1 . . . . . 7 . 2 2 2 . . . . . Prioritize 4 | . . . . . . . . . . . . . . . . . . . . . . 1 . 1 1 1 . . . . . Siphon 9 | . . . . . . . . . . . . . . . . 1 . . . . . 5 . 1 1 1 . . . . . Overload 1 | . . . . . . . . . . . . . . . . . . . . . . 1 . . . . . . . . . Repair Stations . | . . . . . . . . . . . . . . . . . . . . . . . . . . . . . . . . Recycling Units 9 | . 1 . 2 2 3 . . . . . . . . . . . . . . . . . . . . 1 . . . . . Recyclers 1 | . . . . . . . . . . . . . . . . . . . . . . . . . . 1 . . . . . Tunnel 8 | . 1 . 2 2 3 . . . . . . . . . . . . . . . . . . . . . . . . . . Scanalyzers 1 | . . . . . . . . . . . . . . . . . . . . . . . . . . . 1 . . . . Researchers 1 | . . . . . . . . . . . . . . . . . . . . . . . . . . . 1 . . . . Garrison Access 4 | . . . . . . . . . . . . . . . . 1 . . . . . . . . 3 . . . . . . Broadcast 2 | . . . . . . . . . . . . . . . . 1 . . . . . . . . 1 . . . . . . Reprogram 2 | . . . . . . . . . . . . . . . . . . . . . . . . . 2 . . . . . . Data Cores Recovered . | . . . . . . . . . . . . . . . . . . . . . . . . . . . . . . . . Used . | . . . . . . . . . . . . . . . . . . . . . . . . . . . . . . . . Hacking Detections 75 | . 8 . 6 8 4 2 . . . . 1 . . . 6 4 . . . . 3 12 . 6 6 1 5 1 2 . . Full Trace Events 10 | . . . 4 . 2 . . . . . . . . . 2 . . . . . . . . . . 1 1 . . . . Feedback Events 1 | . . . . . . . . . . . . . . . 1 . . . . . . . . . . . . . . . . Corruption 1 | . . . . . . . . . . . . . . . 1 . . . . . . . . . . . . . . . . Feedback Blocked . | . . . . . . . . . . . . . . . . . . . . . . . . . . . . . . . . Robot Schematics Acquired 7 | . 1 . . 1 . . . . 5 . . . . . . . . . . . . . . . . . . . . . . Robots Built 37 | . . . . . . . . . . . . . . . . . . . . . . 22 . 8 5 2 . . . . . Matter 4672 | . . . . . . . . . . . . . . . . . . . . . . 2618 . 912 590 552 . . . . . Time 1599 | . . . . . . . . . . . . . . . . . . . . . . 1009 . 180 293 117 . . . . . Total Robot Build Rating 167 | . . . . . . . . . . . . . . . . . . . . . . 132 . 8 25 2 . . . . . Part Schematics Acquired 20 | . . . . . 3 . . . 8 . 1 . . . . 1 . . . . 1 4 . . . 1 1 . . . . Parts Built 2 | . . . . . . . . . . . . . . . . 1 . . . . 1 . . . . . . . . . . Matter 371 | . . . . . . . . . . . . . . . . 159 . . . . 212 . . . . . . . . . . Time 106 | . . . . . . . . . . . . . . . . 53 . . . . 53 . . . . . . . . . . Total Part Build Rating 12 | . . . . . . . . . . . . . . . . 6 . . . . 6 . . . . . . . . . . Parts Repaired 2 | . . . . . . . . . . . . . . . . . . . . . . . . . . . 1 . 1 . . Time 102 | . . . . . . . . . . . . . . . . . . . . . . . . . . . 80 . 22 . . Parts Recycled . | . . . . . . . . . . . . . . . . . . . . . . . . . . . . . . . . Recycled Matter . | . . . . . . . . . . . . . . . . . . . . . . . . . . . . . . . . Retrieved Matter . | . . . . . . . . . . . . . . . . . . . . . . . . . . . . . . . . Retrieved Components . | . . . . . . . . . . . . . . . . . . . . . . . . . . . . . . . . Parts Scanalyzed 2 | . . . . . . . . . . . . . . . . 1 . . . . . . . 1 . . . . . . . Part Schematics Acquired 2 | . . . . . . . . . . . . . . . . 1 . . . . . . . . . 1 . . . . . Parts Damaged . | . . . . . . . . . . . . . . . . . . . . . . . . . . . . . . . . Bothacking | -11 -10 -10 -9 -9 -9 -7 -7 -7 -7 -6 -6 -6 -6 -6 -6 -5 -5 -5 -5 -4 -4 -4 -4 -3 -3 -2 -2 -2 -1 -1 -1 ------------ Run | Scr Mat Min Mat Sto Rec Fac Low Low Dat Pro Fac Ext Cet Arc Hub Fac Upp Upp War Pro Fac Arm Lab Res Tes Res Qua Sec Acc Com Ac0 Used RIF Installer . | . . . . . . . . . . . . . . . . . . . . . . . . . . . . . . . . Robots Hacked 2 | . . . . . . . . . . . . . . 1 . . . . . . 1 . . . . . . . . . . Non-combat 2 | . . . . . . . . . . . . . . 1 . . . . . . 1 . . . . . . . . . . Combat . | . . . . . . . . . . . . . . . . . . . . . . . . . . . . . . . . Robot Hacks Applied 2 | . . . . . . . . . . . . . . 1 . . . . . . 1 . . . . . . . . . . find_chute 1 | . . . . . . . . . . . . . . . . . . . . . 1 . . . . . . . . . . check_alert 1 | . . . . . . . . . . . . . . 1 . . . . . . . . . . . . . . . . . Relay Couplers Released 3 | . . . . . . . . . . . . . . . 3 . . . . . . . . . . . . . . . . Machine Destruction 3 | . . . . . . . . . . . . . . . 3 . . . . . . . . . . . . . . . . Robots Rewired 23 | . . . . . . 1 . . . . . 10 . . . . . . 5 2 . 4 . . 1 . . . . . . Allies Hacked . | . . . . . . . . . . . . . . . . . . . . . . . . . . . . . . . . Hacks Repelled . | . . . . . . . . . . . . . . . . . . . . . . . . . . . . . . . . Allies | -11 -10 -10 -9 -9 -9 -7 -7 -7 -7 -6 -6 -6 -6 -6 -6 -5 -5 -5 -5 -4 -4 -4 -4 -3 -3 -2 -2 -2 -1 -1 -1 -------- Run | Scr Mat Min Mat Sto Rec Fac Low Low Dat Pro Fac Ext Cet Arc Hub Fac Upp Upp War Pro Fac Arm Lab Res Tes Res Qua Sec Acc Com Ac0 Total Allies 96 | . . . . 12 . 1 . . . 1 1 18 . . . . . . 5 2 . 26 . 9 10 2 . . 1 . 8 Largest Group 18 | . . . . 10 . 1 . . . 1 1 13 8 . . . . . 5 2 . 18 . 5 6 6 6 . 1 . 8 Highest-Rated Group 949 | . . . . 88 . 21 . . . 94 10 512 368 . . . . . 261 98 . 949 . 66 357 260 260 . 44 . 113 Highest-Rated Ally 156 | . . . . 31 . 21 . . . 94 10 156 156 . . . . . 60 49 . 54 . 26 90 90 90 . 44 . 15 Total Orders 66 | . . . . 1 . 3 . . . . . . 1 . . . . . . . . 1 . 1 . . . . . 23 36 STAY 1 | . . . . . . . . . . . . . . . . . . . . . . . . 1 . . . . . . . ROAM 4 | . . . . 1 . . . . . . . . 1 . . . . . . . . 1 . . . . . . . 1 . FOLLOW 2 | . . . . . . . . . . . . . . . . . . . . . . . . . . . . . . . 2 EXPLORE 12 | . . . . . . 3 . . . . . . . . . . . . . . . . . . . . . . . . 9 RETURN 47 | . . . . . . . . . . . . . . . . . . . . . . . . . . . . . . 22 25 Ally Attacks 805 | . . . . 61 . 3 . . . 23 . 118 39 . . . . . 5 31 . 156 . . 104 22 62 . . 56 125 Total Damage 37958 | . . . . 552 . 70 . . . 755 . 2424 777 . . . . . 152 2413 . 3357 . . 3875 867 2638 . . 9452 10626 Kills 121 | . . . . 8 . . . . . 2 . 18 4 . . . . . 1 3 . 22 . . 19 2 6 . . 23 13 Allies Corrupted 1 | . . . . . . . . . . . . . . . . . . . 1 . . . . . . . . . . . . Allies Melted 1 | . . . . . . . . . . . . . . . . . . . 1 . . . . . . . . . . . . Intel | -11 -10 -10 -9 -9 -9 -7 -7 -7 -7 -6 -6 -6 -6 -6 -6 -5 -5 -5 -5 -4 -4 -4 -4 -3 -3 -2 -2 -2 -1 -1 -1 ------- Run | Scr Mat Min Mat Sto Rec Fac Low Low Dat Pro Fac Ext Cet Arc Hub Fac Upp Upp War Pro Fac Arm Lab Res Tes Res Qua Sec Acc Com Ac0 Robot Analysis Total 6 | . 3 . . . . . . . . . . . . . 1 . . . . . . . . . 1 . 1 . . . . Derelict Logs Recovered 8 | . . . . . . . 2 1 . 1 . . . . . . 1 1 . 2 . . . . . . . . . . . Drone Launches 49 | . . . . . . 4 . . . . . . . . . . . . . . . . . . . . . . . 22 23 Drone Recoveries 45 | . . . . . . . . . . . . . . . . . . . . . . . . . . . . . . 22 23 Exploration | -11 -10 -10 -9 -9 -9 -7 -7 -7 -7 -6 -6 -6 -6 -6 -6 -5 -5 -5 -5 -4 -4 -4 -4 -3 -3 -2 -2 -2 -1 -1 -1 ------------- Run | Scr Mat Min Mat Sto Rec Fac Low Low Dat Pro Fac Ext Cet Arc Hub Fac Upp Upp War Pro Fac Arm Lab Res Tes Res Qua Sec Acc Com Ac0 Turns Passed 28833 | 169 2238 195 1269 2166 442 242 1370 1035 103 1323 808 1277 902 423 140 290 1002 1917 1625 1630 166 1076 225 483 745 304 756 395 140 2624 1353 Spaces Moved 20270 | 86 963 99 615 909 232 488 1315 685 78 683 425 549 318 190 210 366 554 940 537 760 237 1239 194 726 844 525 1004 435 185 2399 1480 Core 94 | 3 . . . . . . . . . . . . . . . . . 91 . . . . . . . . . . . . . Treads 5773 | 83 963 99 615 909 232 . . . . . . 461 318 90 . . 554 849 385 . . . . . . . . . . 215 . Legs 3257 | . . . . . . . 848 685 78 683 271 . . . . . . . 138 484 . . . . . . . . . . 70 Wheels 488 | . . . . . . . . . . . 154 88 . . . . . . . . . . . . . . . . . 246 . Hover 9703 | . . . . . . . . . . . . . . 100 210 366 . . 14 276 237 1239 194 726 844 525 1004 435 185 1938 1410 Flight 955 | . . . . . . 488 467 . . . . . . . . . . . . . . . . . . . . . . . . Fastest Speed 22 | 50 160 160 160 160 180 26 26 125 125 125 120 120 160 52 52 56 160 100 108 108 40 40 44 44 44 44 44 44 44 22 22 Average Speed 98 | 156 160 160 164 175 180 27 90 145 126 178 143 178 163 103 53 61 160 161 161 154 52 47 45 44 44 44 48 45 44 58 38 Slowest Speed 550 | 160 160 160 180 200 180 166 182 155 155 185 185 190 190 160 60 100 160 550 180 216 113 148 48 44 44 44 144 144 44 250 130 Overloaded Moves 1452 | . . . . . . . . . . . . . . . . . . . 14 10 108 64 . . . . . . . 2 1254 Propulsion Burnouts . | . . . . . . . . . . . . . . . . . . . . . . . . . . . . . . . . Robots Hopped 11 | . . . . . . 10 . . . . . . . . . . . . . . . . . . . . 1 . . . . Cave-ins Triggered 3 | . . . . . . . . . . . . . . . . . . . . . . . . . . . . . . . 3 Teleports 5 | . . . . . . . . . . . . . . . . . . . . . . . . . . . . 2 . 1 2 Exploration Rate (%) 56 | 5 96 33 54 93 54 13 95 71 69 83 20 67 63 77 29 13 81 90 91 59 7 69 90 19 61 24 85 36 7 74 66 Regions Visited 31 Branch Regions 22 Pre-discovered Areas 14 | . 1 . 2 2 3 . 2 1 1 1 . . . . . . . . . 1 . . . . . . . . . . . Known Exits Taken 25 | . . . 1 . 1 1 1 1 1 1 1 1 1 1 1 1 1 1 . 1 1 1 1 1 1 1 1 1 1 . . Unknown Exits Taken 6 | 1 1 1 . 1 . . . . . . . . . . . . . . 1 . . . . . . . . . . 1 . Scrap Searched 20 | . . . . . . . 4 2 . 4 . . . . . . 5 4 . 1 . . . . . . . . . . . Spaces Dug 163 | . 17 . 37 2 . . 3 1 . . 2 . . . 1 4 . 6 . . 3 13 . 1 7 . 3 15 1 5 42 Terrain Destroyed 1260 | . 22 . 229 9 37 . 90 41 . 82 23 . . 6 179 4 . 6 2 . 3 148 . 52 139 . 4 69 1 27 87 Melee 50 | . . . 1 2 . . 3 1 . . 2 . . . 1 4 . 6 . . 3 . . 1 1 . 1 11 1 4 8 Projectile 169 | . 22 . 1 . . . . . . 1 1 . . 6 3 . . . 2 . . 12 . . 8 . 3 9 . 22 79 AOE 1040 | . . . 227 7 37 . 87 40 . 81 20 . . . 175 . . . . . . 136 . 51 130 . . 49 . . . Terrain Rammed 1 | . . . . . . . . . . . . . . . . . . . . . . . . . . . . . . 1 . Walls Destroyed 1 | . . . . . . . . . . . . . . . . . . . . . . . . . . . . . . 1 . Machines Disabled . | . . . . . . . . . . . . . . . . . . . . . . . . . . . . . . . . Actions | -11 -10 -10 -9 -9 -9 -7 -7 -7 -7 -6 -6 -6 -6 -6 -6 -5 -5 -5 -5 -4 -4 -4 -4 -3 -3 -2 -2 -2 -1 -1 -1 --------- Run | Scr Mat Min Mat Sto Rec Fac Low Low Dat Pro Fac Ext Cet Arc Hub Fac Upp Upp War Pro Fac Arm Lab Res Tes Res Qua Sec Acc Com Ac0 Total 27342 | 107 1439 116 776 1352 247 570 1472 718 82 763 588 801 576 366 227 412 634 1264 1285 1196 272 1652 322 868 1186 597 1237 546 225 3376 2070 Wait 4423 | . 322 1 29 278 . 22 92 1 . 19 94 105 111 117 1 6 40 233 683 378 24 295 100 109 276 64 169 38 27 469 320 Move 20220 | 85 962 98 614 908 231 471 1314 684 77 682 424 548 317 189 209 365 553 940 536 759 236 1238 193 725 843 524 1001 434 184 2398 1478 Hop 7 | . . . . . . 6 . . . . . . . . . . . . . . . . . . . . 1 . . . . Pick Up 241 | 4 3 2 13 17 3 2 7 11 1 16 11 10 16 5 . 8 3 6 9 4 . 5 7 3 5 3 4 1 . 44 18 Fast Attach 235 | 7 6 . 12 10 . 4 8 . . 1 5 4 10 4 . 5 3 6 9 6 3 13 2 4 3 1 10 11 1 58 29 Attach 168 | . . 1 1 5 1 10 4 . 2 4 7 8 12 7 1 6 3 12 2 4 1 4 3 2 3 3 2 5 2 25 28 Detach 86 | . 1 . 3 2 . 5 5 . . 1 5 4 2 3 . 3 3 5 1 . 1 4 1 2 2 . 3 5 1 16 8 Swap 246 | . 22 . 11 27 . 6 6 3 1 10 9 11 14 1 7 8 10 13 8 5 2 22 1 6 13 . 7 3 . 13 7 Drop 349 | . 14 2 21 33 3 12 14 11 1 6 12 9 33 5 1 2 2 8 10 10 1 13 5 2 5 2 10 2 1 78 21 Fire 816 | 9 91 10 46 51 4 1 17 6 . 16 15 18 54 33 5 . 16 24 4 8 1 48 10 10 24 . 24 12 . 140 119 Melee 253 | . . . 10 9 4 10 5 2 . 8 5 . 6 1 3 9 . 16 . 5 3 . . 5 1 . 6 35 9 61 40 Ram 1 | . . . . . . . . . . . . . . . . . . . . . . . . . . . . . . 1 . Kick 1 | . . . . . . . . . . . 1 . . . . . . . . . . . . . . . . . . . . Crush 60 | 2 18 2 16 12 1 . . . . . . 5 1 1 . . 1 1 . . . . . . . . . . . . . Escape Stasis 96 | . . . . . . . . . . . . 22 . . . . . . . . . . . . . . . . . 73 1 Rewire 139 | . . . . . . 20 . . . . . 57 . . . . . . 23 17 . 10 . . 11 . . . . . 1 Trap . | . . . . . . . . . . . . . . . . . . . . . . . . . . . . . . . . Miscellaneous 1 | . . . . . . 1 . . . . . . . . . . . . . . . . . . . . . . . . . Route ------- -11/Scrapyard -10/Materials (discovered 4 exits: *Mat x3 / [*Min]) -10/Mines (discovered 2 exits: *Mat x2) -9/Materials (discovered 6 exits: [*Mat x3] / Min / *Sto x2) -9/Storage (discovered 2 exits: [*Mat] / *Rec) -9/Recycling -7/Factory -7/Lower Caves -7/Lower Caves (discovered 2 exits: *Fac / *Dat) -7/Data Miner -6/Proximity Caves -6/Factory (discovered 5 exits: *Fac / Low x2 / *Ext x2) -6/Extension (discovered 2 exits: *Fac / *Cet) -6/Cetus (discovered 2 exits: *Fac / *Arc) -6/Archives (discovered 3 exits: *Fac / *Hub x2) -6/Hub_04(d) (discovered 4 exits: *Fac x4) -5/Factory (discovered 6 exits: Fac x4 / *Upp x2) -5/Upper Caves (discovered 2 exits: *Upp / *War) -5/Upper Caves (discovered 2 exits: *Fac / *War) -5/Warlord -4/Proximity Caves -4/Factory (discovered 5 exits: Res x2 / Upp x2 / *Arm) -4/Armory (discovered 3 exits: Res x2 / *Lab) -4/Lab -3/Research (discovered 3 exits: Res / *Tes x2) -3/Testing -2/Research (discovered 2 exits: *Acc / *Qua) -2/Quarantine -2/Section 7 -1/Access -1/Command -1/Access_0 To Fleet Rendezvous History --------- Turn | Location | Event 19 | -11/Scrapyard | Discovered new exit (range 15) 170 | -11/Scrapyard | Entered Materials 304 | -10/Materials | Build established: Mutant 778 | -10/Materials | Discovered new exit (range 7) 1323 | -10/Materials | Discovered new exit (range 11) 1441 | -10/Materials | Discovered new exit (range 8) 1876 | -10/Materials | Discovered new exit (range 8) 2408 | -10/Materials | Entered Mines 2453 | -10/Mines | Found a damaged Exp. Sensor Array with a note attached 2479 | -10/Mines | Found Prototype Device 2515 | -10/Mines | Discovered new exit (range 9) 2539 | -10/Mines | Discovered new exit (range 7) 2603 | -10/Mines | Entered Materials 2603 | -9/Materials | Evolved 2 slots: Utility x1, Weapon x1 2886 | -9/Materials | Discovered new exit (range 14) 3055 | -9/Materials | Discovered new exit (range 16) 3278 | -9/Materials | Identified exit to Mines 3278 | -9/Materials | Identified exit to Storage 3375 | -9/Materials | Destroyed 8 combat bots 3774 | -9/Materials | Discovered new exit (range 15) 3803 | -9/Materials | First assault squad dispatched 3872 | -9/Materials | Entered Storage 4127 | -9/Storage | Build established: Scavenger-Tank 4990 | -9/Storage | Build established: Tank 5068 | -9/Storage | Met a pair of Derelict thieves 5421 | -9/Storage | Used back door to open Recycling access 5421 | -9/Storage | Discovered new exit (range 5) 5595 | -9/Storage | Discovered new exit (range 9) 5619 | -9/Storage | Assisted by bots powering up and referring to "LRC-V3" 5867 | -9/Storage | Found Prototype Launcher 5867 | -9/Storage | Identified Gui. Missile Launcher 5870 | -9/Storage | Found Gui. Missile Launcher 6038 | -9/Storage | Entered Recycling 6039 | -9/Recycling | Joined Derelict attack on 0b10 via Recycling 6057 | -9/Recycling | Spotter reported a threat 6061 | -9/Recycling | Spotter reported a threat 6069 | -9/Recycling | Spotter reported a threat 6070 | -9/Recycling | Spotter reported a threat 6072 | -9/Recycling | Spotter reported a threat 6121 | -9/Recycling | Spotter reported a threat 6121 | -9/Recycling | Spotter reported a threat 6121 | -9/Recycling | Spotter reported a threat 6195 | -9/Recycling | Build established: Mutant 6240 | -9/Recycling | Spotter reported a threat 6258 | -9/Recycling | Spotter reported a threat 6264 | -9/Recycling | Identified exit to Factory 6293 | -9/Recycling | Spotter reported a threat 6311 | -9/Recycling | Spotter reported a threat 6374 | -9/Recycling | Spotter reported a threat 6408 | -9/Recycling | Spotter reported a threat 6420 | -9/Recycling | Spotter reported a threat 6442 | -9/Recycling | Spotter reported a threat 6480 | -9/Recycling | Entered Factory 6480 | -7/Factory | Evolved 4 slots: Power x1, Propulsion x2, Utility x1 6548 | -7/Factory | Discovered new exit (range 40) 6685 | -7/Factory | Identified exit to Lower Caves 6690 | -7/Factory | Identified Exp. Sensor Array 6722 | -7/Factory | Entered Lower Caves 6774 | -7/Lower Caves | Encountered a Warlord checkpoint 6818 | -7/Lower Caves | Build established: Sprinter 7241 | -7/Lower Caves | Build established: Mutant 7738 | -7/Lower Caves | Spotted B-75 Beast 7835 | -7/Lower Caves | Attracted the attention of an 0b10 checkpoint 7851 | -7/Lower Caves | Discovered new exit (range 15) 8022 | -7/Lower Caves | Build established: Derelict-Mutant 8091 | -7/Lower Caves | Identified exit to Lower Caves 8092 | -7/Lower Caves | Entered another Lower Caves area 8297 | -7/Lower Caves | Discovered new exit (range 5) 8300 | -7/Lower Caves | Identified exit to Factory 8829 | -7/Lower Caves | Encountered a Warlord checkpoint 8912 | -7/Lower Caves | Discovered new exit (range 3) 8916 | -7/Lower Caves | Identified exit to Data Miner 9127 | -7/Lower Caves | Entered Data Miner 9127 | -7/Data Miner | Discovered new exit (range 6) 9151 | -7/Data Miner | Met Data Miner 9176 | -7/Data Miner | Learned location of Section 7 (-2) 9176 | -7/Data Miner | Acquired the access code to Warlord's prototype stash 9195 | -7/Data Miner | Received God Mode back door access code from Data Miner 9228 | -7/Data Miner | Identified exit to Proximity Caves 9230 | -7/Data Miner | Entered Proximity Caves 9980 | -6/Proximity Caves | Escorted by Enhanced Grunt 10318 | -6/Proximity Caves | Discovered exit to Factory (range 14) 10553 | -6/Proximity Caves | Entered Factory 10553 | -6/Factory | Evolved 2 slots: Utility x2 11010 | -6/Factory | Identified exit to Lower Caves 11010 | -6/Factory | Identified exit to Extension 11118 | -6/Factory | Discovered new exit (range 10) 11159 | -6/Factory | Identified exit to Factory 11361 | -6/Factory | Entered Extension 11407 | -6/Extension | Rescued a captive Derelict 11407 | -6/Extension | Rescued a captive Derelict 11773 | -6/Extension | Rescued a captive Derelict 11774 | -6/Extension | Rescued a captive Derelict 11783 | -6/Extension | Rescued a captive Derelict 11859 | -6/Extension | Rescued A7 11883 | -6/Extension | Rescued a captive Derelict 11884 | -6/Extension | Rescued a captive Derelict 12019 | -6/Extension | Build established: Derelict-Skirmisher 12354 | -6/Extension | Spotted B-75 Beast 12383 | -6/Extension | Spotted B-75 Beast 12391 | -6/Extension | Allies destroyed B-75 Beast 12593 | -6/Extension | Discovered new exit (range 15) 12595 | -6/Extension | Discovered exit to Factory (range 15) 12620 | -6/Extension | Identified exit to Cetus 12638 | -6/Extension | Entered Cetus 12638 | -6/Cetus | Accompanied by 8 allies (A7) 12643 | -6/Cetus | Acquired a Cetus Manufacturing Module code from A7 12661 | -6/Cetus | Spotted Cetus Guard 12661 | -6/Cetus | Spotted Cetus Guard 12663 | -6/Cetus | Spotted Cetus Guard 12663 | -6/Cetus | Spotted Cetus Guard 12667 | -6/Cetus | Allies destroyed Cetus Guard 12680 | -6/Cetus | Allies destroyed Cetus Guard 12680 | -6/Cetus | Allies destroyed Cetus Guard 12714 | -6/Cetus | Destroyed A7 12719 | -6/Cetus | Extracted ID and sensor layout for unrecognized location from A7's data core 12747 | -6/Cetus | Found Prototype Protection 12747 | -6/Cetus | Identified Med. Regenerative Plating 12957 | -6/Cetus | Discovered new exit (range 16) 13122 | -6/Cetus | Spotted Cetus Guard 13122 | -6/Cetus | Spotted Cetus Guard 13125 | -6/Cetus | Spotted Cetus Guard 13138 | -6/Cetus | Destroyed Cetus Guard 13141 | -6/Cetus | Spotted Cetus Guard 13151 | -6/Cetus | Destroyed Cetus Guard 13166 | -6/Cetus | Destroyed Cetus Guard 13187 | -6/Cetus | Lost 3 parts (3w) 13193 | -6/Cetus | Destroyed Cetus Guard 13406 | -6/Cetus | Discovered exit to Factory (range 15) 13473 | -6/Cetus | Identified exit to Archives 13529 | -6/Cetus | Build established: Scavenger-Skirmisher 13540 | -6/Cetus | Entered Archives 13685 | -6/Archives | Discovered new exit (range 15) 13764 | -6/Archives | Discovered exit to Factory (range 16) 13914 | -6/Archives | Discovered new exit (range 16) 13963 | -6/Archives | Build established: Scavenger-Mutant 13963 | -6/Archives | Identified exit to Hub_04(d) 13963 | -6/Archives | Entered Hub_04(d) 14036 | -6/Hub_04(d) | Network Hub disabled 14051 | -6/Hub_04(d) | Network Hub disabled 14055 | -6/Hub_04(d) | Network Hub disabled 14063 | -6/Hub_04(d) | Incoming investigation squad redirected 14065 | -6/Hub_04(d) | Spotted Lightning 14066 | -6/Hub_04(d) | Incoming investigation squad redirected 14077 | -6/Hub_04(d) | Spotted Lightning 14078 | -6/Hub_04(d) | Spotted Lightning 14079 | -6/Hub_04(d) | Network Hub disabled 14081 | -6/Hub_04(d) | Incoming investigation squad redirected 14081 | -6/Hub_04(d) | Core integrity fell below 50% 14084 | -6/Hub_04(d) | Spotted Lightning 14086 | -6/Hub_04(d) | Spotted Lightning 14086 | -6/Hub_04(d) | Spotted Lightning 14097 | -6/Hub_04(d) | System corruption reached 10% 14103 | -6/Hub_04(d) | Entered Factory 14103 | -5/Factory | Evolved 2 slots: Utility x2 14127 | -5/Factory | Lost 5 parts (1p2n2u) 14163 | -5/Factory | Fabricated Adv. Hacking Suite? 14346 | -5/Factory | Identified exit to Upper Caves 14346 | -5/Factory | Identified exit to Factory 14346 | -5/Factory | Central database locked down 14393 | -5/Factory | Entered Upper Caves 14651 | -5/Upper Caves | Learned 4 Factory zone layouts 14734 | -5/Upper Caves | Encountered a Warlord checkpoint 14992 | -5/Upper Caves | Build established: Hacker-Tank 15326 | -5/Upper Caves | Discovered new exit (range 5) 15331 | -5/Upper Caves | A Derelict revealed a hidden shortcut to "reach the base" 15332 | -5/Upper Caves | Identified exit to Upper Caves 15340 | -5/Upper Caves | Identified exit to Warlord 15395 | -5/Upper Caves | Entered another Upper Caves area 15418 | -5/Upper Caves | Discovered exit to Factory (range 5) 15819 | -5/Upper Caves | Lost 4 parts (2p1n1u) 16092 | -5/Upper Caves | Build established: Hacker-Mutant 16267 | -5/Upper Caves | Spotted B-75 Beast 16342 | -5/Upper Caves | Lost 6 parts (2n2u2w) 16360 | -5/Upper Caves | Learned 8 Factory zone layouts 16504 | -5/Upper Caves | Attracted the attention of an 0b10 checkpoint 16754 | -5/Upper Caves | Build established: Derelict-Mutant 17300 | -5/Upper Caves | Discovered exit to Warlord (range 7) 17312 | -5/Upper Caves | Entered Warlord 17365 | -5/Warlord | System corruption cleaned by Quarantine Array 17730 | -5/Warlord | Found Prototype Device 17831 | -5/Warlord | Visited the Vortex Lab 17837 | -5/Warlord | Found Prototype Energy Gun 17837 | -5/Warlord | Identified Vortex Shotgun 17841 | -5/Warlord | Found Vortex Shotgun 17844 | -5/Warlord | Warlord's base attacked by MAIN.C 17847 | -5/Warlord | Found Prototype Piercing Weapon 17847 | -5/Warlord | Identified Vortex Lance 17851 | -5/Warlord | Found Vortex Lance 17890 | -5/Warlord | Build established: Commander-Mutant 17942 | -5/Warlord | Met Warlord 17956 | -5/Warlord | Opened Warlord's prototype stash 17962 | -5/Warlord | Found Prototype Reactor 17962 | -5/Warlord | Identified Vortex Chain Reactor 17969 | -5/Warlord | Found Prototype Processor 17993 | -5/Warlord | Found Prototype Processor 17996 | -5/Warlord | Found Prototype Device 17997 | -5/Warlord | Identified System Purifier 18112 | -5/Warlord | P-80 Master assimilated allied Disruptor 6b 18194 | -5/Warlord | Warlord forces counterattacked 18414 | -5/Warlord | Build established: Mutant 18893 | -5/Warlord | Opened side exit 18926 | -5/Warlord | Spotted Striker 18928 | -5/Warlord | Spotted Striker 18932 | -5/Warlord | Discovered new exit (range 9) 18937 | -5/Warlord | Entered Proximity Caves 18978 | -4/Proximity Caves | Learned location of Testing (-3) 18987 | -4/Proximity Caves | Learned location of 1 exit from Research 20151 | -4/Proximity Caves | Discovered exit to Factory (range 14) 20489 | -4/Proximity Caves | Found Prototype Launcher 20489 | -4/Proximity Caves | Identified Mni. Smartbomb Launcher 20567 | -4/Proximity Caves | Entered Factory 20567 | -4/Factory | Evolved 2 slots: Utility x2 20568 | -4/Factory | Identified exit to Upper Caves 20568 | -4/Factory | Identified exit to Research 20644 | -4/Factory | Fabricated Adv. Hacking Suite (x1) 20666 | -4/Factory | Identified exit to Armory 20719 | -4/Factory | Central database locked down 20733 | -4/Factory | Entered Armory 20784 | -4/Armory | Identified Exp. Targeting Computer 20788 | -4/Armory | Identified Exp. Core Analyzer 20810 | -4/Armory | Spotted B-86 Titan 20852 | -4/Armory | Found Exp. Signal Interpreter 20854 | -4/Armory | Found Exp. ECM Suite 20866 | -4/Armory | Found Mni. Smartbomb Launcher 20877 | -4/Armory | Build established: Hacker-Mutant 20983 | -4/Armory | First assault squad dispatched 21040 | -4/Armory | Destroyed 10 combat bots 21097 | -4/Armory | Fabricated P-70 Sage? 21187 | -4/Armory | Fabricated P-70 Sage? 21273 | -4/Armory | Incoming investigation squad redirected 21276 | -4/Armory | Fabricated P-70 Sage (x2) 21326 | -4/Armory | Fabricated P-70 Sage? 21360 | -4/Armory | Fabricated P-70 Sage? 21408 | -4/Armory | Fabricated P-70 Sage (x2) 21424 | -4/Armory | Fabricated P-70 Sage? 21579 | -4/Armory | Fabricated P-70 Sage? 21584 | -4/Armory | Fabricated P-70 Sage (x2) 21630 | -4/Armory | Build established: Commander-Mutant 21651 | -4/Armory | Local fabrication network quarantined 21674 | -4/Armory | Fabricated P-70 Sage? 21685 | -4/Armory | Fabricated P-70 Sage? 21762 | -4/Armory | Discovered new exit (range 16) 21762 | -4/Armory | Central database locked down 21802 | -4/Armory | Incoming assault squad redirected 21805 | -4/Armory | Identified exit to Lab 21809 | -4/Armory | Entered Lab 21813 | -4/Lab | Discovered exit to Research (range 9) 21818 | -4/Lab | Hidden lab's door opened automatically 21818 | -4/Lab | Sensor layout match revealed 21819 | -4/Lab | Gained access to the hidden lab's interior 21916 | -4/Lab | Found Alien Artifact 21916 | -4/Lab | Identified Integrated Dissipator 21916 | -4/Lab | Installed Integrated Dissipator, increased core heat dissipation (+20) 21921 | -4/Lab | Found Alien Artifact 21921 | -4/Lab | Identified Core Expander 21921 | -4/Lab | Installed Core Expander, added new Propulsion slot 21937 | -4/Lab | Found Alien Artifact 21951 | -4/Lab | Found Alien Artifact 22034 | -4/Lab | Entered Research 22034 | -3/Research | Evolved 2 slots: Utility x2 22035 | -3/Research | Identified exit to Research 22040 | -3/Research | Identified Transdimensional Reconstructor 22040 | -3/Research | Identified Wardrone Bay 22040 | -3/Research | Identified Core Reset Matrix 22111 | -3/Research | Identified exit to Testing 22233 | -3/Research | Found Adv. Powered Armor 22234 | -3/Research | Revision forces began assault on 0b10 22267 | -3/Research | Fabricated O-16 Technician (x1) 22290 | -3/Research | Fabricated O-16 Technician (x1) 22310 | -3/Research | Fabricated O-16 Technician (x1) 22330 | -3/Research | Fabricated O-16 Technician? 22417 | -3/Research | Met up with Revision 17++ 22420 | -3/Research | Fabricated O-16 Technician (x1) 22440 | -3/Research | Fabricated O-16 Technician (x1) 22460 | -3/Research | Fabricated O-16 Technician (x1) 22480 | -3/Research | Fabricated O-16 Technician (x1) 22517 | -3/Research | Entered Testing 22559 | -3/Testing | Discovered exit to Research (range 5) 22628 | -3/Testing | Found Prototype Ballistic Gun 22688 | -3/Testing | Spotted 9O-UHR(L) 22688 | -3/Testing | Spotted W8-WDM(L) 22688 | -3/Testing | Spotted Alpha 7 22699 | -3/Testing | Rewired W8-WDM(L) 22715 | -3/Testing | Garrison activated, responded to threat 22723 | -3/Testing | Allies destroyed Alpha 7 22729 | -3/Testing | Found Prototype Energy Gun 22729 | -3/Testing | Identified Enh. Gamma Rifle 22821 | -3/Testing | Build established: Hacker-Mutant 22883 | -3/Testing | Fabricated P-70 Sage (x2) 22925 | -3/Testing | Fabricated O-16 Technician (x1) 23011 | -3/Testing | Fabricated P-70 Sage? 23058 | -3/Testing | Protovariant out of control (PH-WWZXS80XFO) 23058 | -3/Testing | Unleashed a protovariant (PH-WWZXS80XFO) 23080 | -3/Testing | Found Prototype Hackware 23081 | -3/Testing | Incoming assault squad redirected 23262 | -3/Testing | Entered Research 23262 | -2/Research | Accompanied by 5 allies 23262 | -2/Research | Warlord forces began assault on 0b10 23262 | -2/Research | Evolved 2 slots: Utility x2 23267 | -2/Research | Identified Ghost Barrier 23270 | -2/Research | Identified Hyp. Multirail 23329 | -2/Research | Fabricated O-16 Technician? 23333 | -2/Research | Fabricated O-16 Technician? 23372 | -2/Research | Research machine network offline 23387 | -2/Research | Discovered new exit (range 12) 23393 | -2/Research | Identified exit to Access 23514 | -2/Research | Found Exp. Terrain Scan Processor 23536 | -2/Research | Met up with Warlord 23555 | -2/Research | Discovered new exit (range 16) 23561 | -2/Research | Identified exit to Quarantine 23566 | -2/Research | Entered Quarantine 23566 | -2/Quarantine | Accompanied by 6 allies 23609 | -2/Quarantine | Cryocooling Duct disabled 23612 | -2/Quarantine | Cryocooling Duct disabled 23624 | -2/Quarantine | Ambient heat levels rising (+20) 23624 | -2/Quarantine | Non-combat units ordered to evacuate 23627 | -2/Quarantine | Ambient heat levels rising (+20) 23627 | -2/Quarantine | Combat units ordered to evacuate 23684 | -2/Quarantine | Repaired Exp. Sensor Array 23718 | -2/Quarantine | Found Alien Artifact 23720 | -2/Quarantine | Found Alien Artifact 23722 | -2/Quarantine | Found Transdimensional Reconstructor 23724 | -2/Quarantine | Found Alien Artifact 23727 | -2/Quarantine | Quarantine Guard activated 23820 | -2/Quarantine | Spotted Quarantine Guard 23827 | -2/Quarantine | Allies destroyed Quarantine Guard 23878 | -2/Quarantine | Spotted Quarantine Guard 23886 | -2/Quarantine | Allies destroyed Quarantine Guard 23913 | -2/Quarantine | Spotted Quarantine Guard 23919 | -2/Quarantine | Spotted Quarantine Guard 23924 | -2/Quarantine | Spotted Quarantine Guard 23925 | -2/Quarantine | Allies destroyed Quarantine Guard 23930 | -2/Quarantine | Destroyed Quarantine Guard 23931 | -2/Quarantine | Spotted Quarantine Guard 23944 | -2/Quarantine | Allies destroyed Quarantine Guard 23945 | -2/Quarantine | Destroyed Quarantine Guard 23969 | -2/Quarantine | Found Alien Artifact 23969 | -2/Quarantine | Identified Phase Redirector 24142 | -2/Quarantine | Discovered exit to Access (range 16) 24151 | -2/Quarantine | Identified Hpw. Transdimensional Reconstructor (x3) 24170 | -2/Quarantine | Found Alien Slashing Weapon 24170 | -2/Quarantine | Identified Sigix Broadsword 24202 | -2/Quarantine | Used Core Reset Matrix 24206 | -2/Quarantine | Detected hypermatrix surge 24206 | -2/Quarantine | Sensed 8 artifacts in vicinity 24207 | -2/Quarantine | Incoming investigation squad redirected 24214 | -2/Quarantine | Spotted Quarantine Guard 24215 | -2/Quarantine | Allies destroyed Quarantine Guard 24247 | -2/Quarantine | Spotted Quarantine Guard 24254 | -2/Quarantine | Allies destroyed Quarantine Guard 24265 | -2/Quarantine | Spotted Fortress 24312 | -2/Quarantine | Discovered new exit (range 5) 24312 | -2/Quarantine | Spotted Quarantine Guard 24322 | -2/Quarantine | Identified exit to Section 7 24322 | -2/Quarantine | Entered Section 7 24323 | -2/Section 7 | Sensed 25 artifacts in vicinity 24342 | -2/Section 7 | Found Integrated Dissipator 24342 | -2/Section 7 | Installed Integrated Dissipator, increased core heat dissipation (+20) 24381 | -2/Section 7 | Warped through subspace 24419 | -2/Section 7 | Found Integrated Dissipator 24419 | -2/Section 7 | Installed Integrated Dissipator, increased core heat dissipation (+20) 24475 | -2/Section 7 | Spotted S7 Guard 24477 | -2/Section 7 | Found Core Regenerator 24477 | -2/Section 7 | Used Core Regenerator, restored core integrity (+233) 24507 | -2/Section 7 | Spotted Alpha 7 24510 | -2/Section 7 | Spotted Alpha 7 24519 | -2/Section 7 | Spotted B-99 Colossus 24537 | -2/Section 7 | Found Integrated Reactor 24537 | -2/Section 7 | Installed Integrated Reactor, increased core energy generation (+10) 24539 | -2/Section 7 | Found Integrated Reactor 24539 | -2/Section 7 | Installed Integrated Reactor, increased core energy generation (+10) 24541 | -2/Section 7 | Found Integrated Reactor 24541 | -2/Section 7 | Installed Integrated Reactor, increased core energy generation (+10) 24559 | -2/Section 7 | Found LRC Boosters 24559 | -2/Section 7 | Installed LRC Boosters, increased mass support (+10) 24564 | -2/Section 7 | Found LRC Insulator 24583 | -2/Section 7 | Warped through subspace 24583 | -2/Section 7 | Spotted S7 Guard 24625 | -2/Section 7 | Installed LRC Insulator, gained EM resistance (25) 24637 | -2/Section 7 | Spotted S7 Guard 24648 | -2/Section 7 | Found Core Membrane 24648 | -2/Section 7 | Installed Core Membrane, gained immunity to corruption 24665 | -2/Section 7 | Discovered exit to Access (range 10) 24667 | -2/Section 7 | Spotted S7 Guard 24672 | -2/Section 7 | Found Integrated Singularity Reactor 24672 | -2/Section 7 | Installed Integrated Singularity Reactor, increased core energy generation (+20) 24685 | -2/Section 7 | Found Integrated Reactor 24685 | -2/Section 7 | Installed Integrated Reactor, increased core energy generation (+10) 24717 | -2/Section 7 | Entered Access 24717 | -1/Access | Evolved 2 slots: Utility x2 24769 | -1/Access | Repaired Adv. Powered Armor 24813 | -1/Access | Identified exit to Command 24843 | -1/Access | Spotted B-99 Colossus 24843 | -1/Access | Spotted B-99 Colossus 24847 | -1/Access | Build established: Alien-Mutant 24857 | -1/Access | Entered Command 25029 | -1/Command | Spotted M Guard 25031 | -1/Command | Spotted Combat Programmer 25032 | -1/Command | Spotted Combat Programmer 25034 | -1/Command | Spotted M Guard 25059 | -1/Command | Destroyed M Guard 25078 | -1/Command | Destroyed M Guard 25123 | -1/Command | Destroyed Combat Programmer 25133 | -1/Command | Destroyed Combat Programmer 25133 | -1/Command | All MAIN.C guards destroyed 25149 | -1/Command | Lost 16 parts (2p3n8u3w) 25217 | -1/Command | Found Unknown Protection 25217 | -1/Command | Identified Hvy. Reflective Plating 25995 | -1/Command | Build established: Scavenger-Mutant 26176 | -1/Command | Met MAIN.C 26198 | -1/Command | Allies destroyed MAIN.C Shell 26198 | -1/Command | MAIN.C activated Command garrisons 26198 | -1/Command | 0b10 Conduit disabled 26209 | -1/Command | Allies destroyed MAIN.C 26213 | -1/Command | Found Prototype Reactor 26213 | -1/Command | Identified Zero-point Reactor 26229 | -1/Command | Found Exp. Targeting Computer 26232 | -1/Command | Found Prototype Protection 26232 | -1/Command | Identified Exp. Powered Armor 26301 | -1/Command | Spotted B-99 Colossus 26559 | -1/Command | Build established: Alien-Tank 26647 | -1/Command | Found Unknown Device 26650 | -1/Command | Identified Antimissile System 26781 | -1/Command | Found Prototype Ballistic Cannon 26783 | -1/Command | Found Prototype Processor 26799 | -1/Command | Identified Exp. Target Analyzer 26799 | -1/Command | Spotted Executioner 26800 | -1/Command | Spotted B-99 Colossus 26811 | -1/Command | Allies destroyed Executioner 26817 | -1/Command | Identified Omega Cannon 26842 | -1/Command | Allies destroyed B-99 Colossus 26848 | -1/Command | Found Prototype Processor 26870 | -1/Command | Identified Exp. Core Analyzer 26890 | -1/Command | Found Prototype Device 26940 | -1/Command | Spotted Alpha 7 26944 | -1/Command | Identified Exp. Shock Absorption System 26944 | -1/Command | Allies destroyed Alpha 7 27301 | -1/Command | Found Unknown Device 27309 | -1/Command | Identified Quantum Capacitor 27438 | -1/Command | Found Prototype Device 27460 | -1/Command | Identified Exp. ECM Suite 27475 | -1/Command | Warped through subspace to slip node 27475 | -1/Command | Discovered new exit (range 5) 27481 | -1/Command | Entered Access_0 27482 | -1/Access_0 | Sensed 3 artifacts in vicinity 27482 | -1/Access_0 | Met Architect 27511 | -1/Access_0 | Architect warped through subspace 27524 | -1/Access_0 | Allies destroyed A8 27532 | -1/Access_0 | Found Prototype Protection 27532 | -1/Access_0 | Identified Lgt. Regenerative Plating 27579 | -1/Access_0 | Architect warped through subspace 27585 | -1/Access_0 | Found Exp. Powered Armor 27612 | -1/Access_0 | Subspace Access Node disabled 27631 | -1/Access_0 | Architect warped through subspace 27660 | -1/Access_0 | Found Prototype Device 27662 | -1/Access_0 | Found Prototype Device 27664 | -1/Access_0 | Found Exp. Targeting Computer 27668 | -1/Access_0 | A6 warped into view 27686 | -1/Access_0 | Architect warped through subspace 27693 | -1/Access_0 | Found Prototype Protection 27693 | -1/Access_0 | Identified Med. Regenerative Plating 27713 | -1/Access_0 | Found Exp. Targeting Computer 27737 | -1/Access_0 | Architect warped through subspace 27771 | -1/Access_0 | Subspace Access Node disabled 27787 | -1/Access_0 | Architect warped through subspace 27831 | -1/Access_0 | Architect warped through subspace 27834 | -1/Access_0 | Found Prototype Protection 27834 | -1/Access_0 | Identified Centrium Linked Plating 27836 | -1/Access_0 | Found Centrium Linked Plating 27876 | -1/Access_0 | Architect warped through subspace 27917 | -1/Access_0 | Found Prototype Device 27917 | -1/Access_0 | Identified Desublimator (x2) 27931 | -1/Access_0 | Architect warped through subspace 27972 | -1/Access_0 | Core integrity fell below 50% 27989 | -1/Access_0 | Emitted hypermatrix ping 27994 | -1/Access_0 | Assembled emerged from beneath the floor 28000 | -1/Access_0 | A5 warped into view 28023 | -1/Access_0 | Found Sigix Broadsword 28049 | -1/Access_0 | Architect warped through subspace 28101 | -1/Access_0 | Subspace Access Node disabled 28102 | -1/Access_0 | A4 warped into view 28184 | -1/Access_0 | Core integrity fell below 20% 28197 | -1/Access_0 | Lost 4 parts (3n1w) 28286 | -1/Access_0 | Lost 3 parts (1p2u) 28308 | -1/Access_0 | Crushed by falling debris 28339 | -1/Access_0 | Lost 4 parts (1n2u1w) 28354 | -1/Access_0 | Subspace Access Node disabled 28374 | -1/Access_0 | Identified Exp. Weapon Cycler 28378 | -1/Access_0 | Found Modified Quantum Sheargun 28385 | -1/Access_0 | Found Prototype Device 28385 | -1/Access_0 | Identified Exp. Thermal Shield 28437 | -1/Access_0 | Found Hpw. Transdimensional Reconstructor 28437 | -1/Access_0 | Warped through subspace to slip node 28437 | -1/Access_0 | Discovered new exit (range 8) 28453 | -1/Access_0 | Lost 4 parts (1p2n1u) 28501 | -1/Access_0 | Crushed by falling debris 28501 | -1/Access_0 | Warped through subspace to slip node 28560 | -1/Access_0 | Build established: Alien-Mutant 28773 | -1/Access_0 | Crushed by falling debris 28834 | *** | Heading to fleet! Last Messages --------------- 28501_ The unstable cave ceiling collapses. 28501_ Crushed by falling debris. 28501_ Exp. ECM Suite destroyed. 28501_ Core Membrane filtered system corruption (0). 28501_ Exp. Targeting Computer destroyed. 28501_ Core Membrane filtered system corruption (3). 28501_ Warped through subspace, drawn to slip node. 28716_ Quantum Shear penetrates Earth. 28716_ HV Slug penetrates Earth. 28773_ The unstable cave ceiling collapses. 28773_ Crushed by falling debris. 28825_ Penetrated by Quantum Shear. 28825_ Quantum Shear penetrates Wall. 28825_ HV Slug penetrates Wall. 28830_ Quantum Shear penetrates Wall. 28831_ Dimensional Slip Node implodes. 28833_ HV Slug penetrates Architect. 28833_ Architect suffers critical hit. 28833_ Quantum Shear penetrates Wall. 28834_ Penetrated by Quantum Shear. Map ----- +----------------------------------------------------+ | | | | | | | | | | | | | | | | | | | | | | | | | | | | | | | | | ?????????????????????????????????????????????????? | | ?????????????????????????????????????????????????? | | ?????????????????????????????????????????????????? | | ?????????????????????????????????????????????????? | | ?????????????????????????????????????????????????? | | ?????????????????????????####????????????????????? | | ????????????????????????##; #????????????????????? | | ???????????????????????## ;;##???????????????????? | | ???????????????????????# ; #???????????????????? | | ???????????????????????# @ ;##???????????????????? | | ??????????????????????## ;#????????????????????? | | ?????????????????????? ##????????????????????? | | ???????????????????? ?????????????????????? | | ???????????????????# ????????????????????? | | ??????????????????# ???????????????????? | | ??????????????????# ???????????????????? | | ??????????????????# 0 #??????????????????? | | ??????????????????# #??????????????????? | | ??????????????????# #??????????????????? | | ??????????????????## ##??????????????????? | | ???????????????????# #???????????????????? | | ???????????????????### ###???????????????????? | | ?????????????????????## ;??????????????????????? | | ??????????????????????# ;##??????????????????????? | | ??????????????????????## #???????????????????????? | | ???????????????????????# #???????????????????????? | | ???????????????????????# #???????????????????????? | | ???????????????????????# #???????????????????????? | | ???????????????????????# #???????????????????????? | | ???????????????????????# #???????????????????????? | | ???????????????????????# #???????????????????????? | | ???????????????????????# #???????????????????????? | | ???????????????????????# #???????????????????????? | | ???????????????????????# #???????????????????????? | +----------------------------------------------------+ Best States ------------- Heat Dissipation 193 Coolant Potential 220 Energy Generation 117 Energy Capacity 1690 Matter Stores 800 Matter Capacity 800 Sight Range 16 Robot Scan Range 30 Terrain Scan Range 16 Terrain Scan Density 60 ECM Strength 5 Jamming Range 14 Cloak Strength 2 Additional Mass Support 16 Armor Coverage 2450 Resistance: TH 25 Resistance: EM 25 Core Shielding 30 Power Shielding 90 Propulsion Shielding 90 Utility Shielding 66 Weapon Cycling 30 Melee Speed Boost 40 Evasion (%) 73 Targeting Accuracy 36 Target Analysis 12 Core Analysis 15 Recoil Reduction 5 Particle Charging 25 Salvage Targeting 1 Offensive Hacking 42 Defensive Hacking 32 Item Schematics ----------------- None Robot Schematics ------------------ None Fabricated ------------ Adv. Hacking Suite | x1 | -5/Factory Adv. Hacking Suite | x1 | -4/Factory P-70 Sage | x2 | -4/Armory P-70 Sage | x2 | -4/Armory P-70 Sage | x2 | -4/Armory P-70 Sage | x2 | -4/Armory P-70 Sage | x2 | -4/Armory P-70 Sage | x2 | -4/Armory P-70 Sage | x2 | -4/Armory P-70 Sage | x2 | -4/Armory P-70 Sage | x2 | -4/Armory P-70 Sage | x2 | -4/Armory P-70 Sage | x2 | -4/Armory O-16 Technician | x1 | -3/Research O-16 Technician | x1 | -3/Research O-16 Technician | x1 | -3/Research O-16 Technician | x1 | -3/Research O-16 Technician | x1 | -3/Research O-16 Technician | x1 | -3/Research O-16 Technician | x1 | -3/Research O-16 Technician | x1 | -3/Research P-70 Sage | x2 | -3/Testing O-16 Technician | x1 | -3/Testing P-70 Sage | x2 | -3/Testing O-16 Technician | x1 | -2/Research O-16 Technician | x1 | -2/Research Alien Tech Used ----------------- Integrated Dissipator Core Expander Phase Redirector Sigix Broadsword Core Reset Matrix High-powered Transdimensional Reconstructor Core Regenerator Integrated Reactor LRC Boosters LRC Insulator Core Membrane Integrated Singularity Reactor Transdimensional Reconstructor Modified Quantum Sheargun Achievements -------------- None Challenges ------------ None Game ------ Seed StasisShieldCapacitor Manual? 0 Play Time 04:45:19 Cumulative 1839.4 hours Start 2020.11.26 @ 07:41:38 End 2020.11.26 @ 13:39:31 Sessions 7 Manual Loads 0 Difficulty Rogue Special Mode None Game No. 2520 Rogue 2512 Adventurer 0 Explorer 8 Win Type 2 Total 186 Types 41/24/74/3/3/5/33/2/1 Lore% 100 Gallery% 99 Achievement% 100 Wizard Run 0 Options --------- ASCII 0 Keyboard 1 Movement Numpad Keybinds 1 Fullscreen 1 Font 18/SmallcapsGlow Map View 76x50 Tactical HUD 1 Map Filters NONE Filters NONE Steam 1 RUN: 4e3859e3-7765-4784-9320-94347e8247e1